Department,Entity, Transaction Date, Expense Type, Expense Area, Supplier Name,Transaction number, Amount, Invoice Description
DFID,CSC,05/12/2018,Engagement,Programme Costs,NatWest CC,NOM000794,355.43,
DFID,CSC,05/12/2018,Engagement,Programme Costs,NatWest CC,NOM000794,60,
DFID,CSC,05/12/2018,Engagement,Programme Costs,NatWest CC,NOM000794,19.68,
DFID,CSC,05/12/2018,Engagement,Admin Costs,NatWest CC,NOM000794,1.59,
DFID,CSC,05/12/2018,Scholar Engagement,Programme Costs,NatWest CC,NOM000794,20.55,
DFID,CSC,05/12/2018,Engagement,Programme Costs,NatWest CC,NOM000794,29.56,
DFID,CSC,05/12/2018,Scholar Engagement,Programme Costs,NatWest CC,NOM000794,55.87,
DFID,CSC,05/12/2018,Secretariat Travel,Programme Costs,NatWest CC,NOM000794,523.5,
DFID,CSC,05/12/2018,Commission Meetings,Admin Costs,NatWest CC,NOM000794,113,
DFID,CSC,05/12/2018,Scholar Engagement,Programme Costs,NatWest CC,NOM000794,47.99,
DFID,CSC,05/12/2018,Commission Meetings,Admin Costs,NatWest CC,NOM000794,19.24,
DFID,CSC,05/12/2018,Scholar Engagement,Programme Costs,NatWest CC,NOM000794,55.65,
DFID,CSC,05/12/2018,Scholar Engagement,Programme Costs,NatWest CC,NOM000794,208.4,
DFID,CSC,05/12/2018,Secretariat Travel,Programme Costs,NatWest CC,NOM000794,29.5,
DFID,CSC,05/12/2018,Secretariat Travel,Programme Costs,NatWest CC,NOM000794,121.9,
DFID,CSC,05/12/2018,Scholar Engagement,Programme Costs,NatWest CC,NOM000794,78,
DFID,CSC,05/12/2018,Scholar Travel,Award Costs,Diversity Travel,PIN036539,499.81,
DFID,CSC,05/12/2018,Scholar Travel,Award Costs,Diversity Travel,PIN036539,1063.21,
DFID,CSC,05/12/2018,Fieldwork Airfare,Award Costs,Diversity Travel,PIN036539,-47.8,
DFID,CSC,05/12/2018,Scholar Travel,Award Costs,Diversity Travel,PIN036539,647.79,
DFID,CSC,05/12/2018,Fieldwork Airfare,Award Costs,Diversity Travel,PIN036540,25.5,
DFID,CSC,05/12/2018,Scholar Travel,Award Costs,Diversity Travel,PIN036540,370.01,
DFID,CSC,05/12/2018,Scholar Travel,Award Costs,Diversity Travel,PIN036540,588.78,
DFID,CSC,05/12/2018,Fieldwork Airfare,Award Costs,Diversity Travel,PIN036540,33.6,
DFID,CSC,05/12/2018,Scholar Travel,Award Costs,Diversity Travel,PIN036540,823.47,
DFID,CSC,05/12/2018,Scholar Travel,Award Costs,Diversity Travel,PIN036540,700.41,
DFID,CSC,05/12/2018,Scholar Travel,Award Costs,Diversity Travel,PIN036540,505.77,
DFID,CSC,05/12/2018,Fieldwork Airfare,Award Costs,Diversity Travel,PIN036540,632.91,
DFID,CSC,05/12/2018,Scholar Travel,Award Costs,Diversity Travel,PIN036540,551.68,
DFID,CSC,05/12/2018,Fieldwork Airfare,Award Costs,Diversity Travel,PIN036540,1137.41,
DFID,CSC,05/12/2018,Scholar Travel,Award Costs,Diversity Travel,PIN036540,1281.21,
DFID,CSC,05/12/2018,Scholar Travel,Award Costs,Diversity Travel,PIN036540,1318.46,
DFID,CSC,05/12/2018,Scholar Travel,Award Costs,Diversity Travel,PIN036540,396.6,
DFID,CSC,05/12/2018,Scholar Travel,Award Costs,Diversity Travel,PIN036540,99.7,
DFID,CSC,05/12/2018,Scholar Travel,Award Costs,Diversity Travel,PIN036540,616.41,
DFID,CSC,05/12/2018,Scholar Travel,Award Costs,Diversity Travel,PIN036540,187,
DFID,CSC,05/12/2018,Scholar Travel,Award Costs,Diversity Travel,PIN036540,499.81,
DFID,CSC,05/12/2018,Fieldwork Airfare,Award Costs,Diversity Travel,PIN036540,-47.8,
DFID,CSC,05/12/2018,Scholar Travel,Award Costs,Diversity Travel,PIN036540,647.79,
DFID,CSC,05/12/2018,Scholar Travel,Award Costs,Diversity Travel,PIN036541,439.67,
DFID,CSC,05/12/2018,Scholar Travel,Award Costs,Diversity Travel,PIN036541,436.01,
DFID,CSC,05/12/2018,Scholar Travel,Award Costs,Diversity Travel,PIN036541,411.71,
DFID,CSC,05/12/2018,Scholar Travel,Award Costs,Diversity Travel,PIN036541,864.71,
DFID,CSC,05/12/2018,Scholar Travel,Award Costs,Diversity Travel,PIN036541,552.41,
DFID,CSC,05/12/2018,Scholar Travel,Award Costs,Diversity Travel,PIN036541,527.49,
DFID,CSC,05/12/2018,Scholar Travel,Award Costs,Diversity Travel,PIN036541,499.58,
DFID,CSC,05/12/2018,Scholar Travel,Award Costs,Diversity Travel,PIN036541,471.18,
DFID,CSC,05/12/2018,Scholar Travel,Award Costs,Diversity Travel,PIN036541,489.4,
DFID,CSC,05/12/2018,Scholar Travel,Award Costs,Diversity Travel,PIN036541,559.41,
DFID,CSC,05/12/2018,Scholar Travel,Award Costs,Diversity Travel,PIN036541,491.9,
DFID,CSC,05/12/2018,Scholar Travel,Award Costs,Diversity Travel,PIN036541,860.2,
DFID,CSC,05/12/2018,Scholar Travel,Award Costs,Diversity Travel,PIN036541,458.71,
DFID,CSC,05/12/2018,Scholar Travel,Award Costs,Diversity Travel,PIN036541,819.12,
DFID,CSC,05/12/2018,Scholar Travel,Award Costs,Diversity Travel,PIN036541,449.48,
DFID,CSC,05/12/2018,Scholar Travel,Award Costs,Diversity Travel,PIN036541,649.86,
DFID,CSC,05/12/2018,Scholar Travel,Award Costs,Diversity Travel,PIN036541,463.41,
DFID,CSC,05/12/2018,Scholar Travel,Award Costs,Diversity Travel,PIN036541,413.41,
DFID,CSC,05/12/2018,Scholar Travel,Award Costs,Diversity Travel,PIN036541,466.41,
DFID,CSC,05/12/2018,Scholar Travel,Award Costs,Diversity Travel,PIN036541,341.75,
DFID,CSC,05/12/2018,Fieldwork Airfare,Award Costs,Diversity Travel,PIN036541,30,
DFID,CSC,05/12/2018,Scholar Travel,Award Costs,Diversity Travel,PIN036541,310.91,
DFID,CSC,05/12/2018,Scholar Travel,Award Costs,Diversity Travel,PIN036541,395.76,
DFID,CSC,05/12/2018,Scholar Travel,Award Costs,Diversity Travel,PIN036541,506.91,
DFID,CSC,05/12/2018,Scholar Travel,Award Costs,Diversity Travel,PIN036541,646.97,
DFID,CSC,05/12/2018,Scholar Travel,Award Costs,Diversity Travel,PIN036541,17.5,
DFID,CSC,05/12/2018,Scholar Travel,Award Costs,Diversity Travel,PIN036541,460.66,
DFID,CSC,05/12/2018,Scholar Travel,Award Costs,Diversity Travel,PIN036541,507.18,
DFID,CSC,05/12/2018,Scholar Travel,Award Costs,Diversity Travel,PIN036541,706.77,
DFID,CSC,05/12/2018,Scholar Travel,Award Costs,Diversity Travel,PIN036541,421.91,
DFID,CSC,05/12/2018,Scholar Travel,Award Costs,Diversity Travel,PIN036541,358.91,
DFID,CSC,05/12/2018,Scholar Travel,Award Costs,Diversity Travel,PIN036541,556.91,
DFID,CSC,05/12/2018,Scholar Travel,Award Costs,Diversity Travel,PIN036541,339.71,
DFID,CSC,05/12/2018,Scholar Travel,Award Costs,Diversity Travel,PIN036541,305.98,
DFID,CSC,05/12/2018,Scholar Travel,Award Costs,Diversity Travel,PIN036541,402.91,
DFID,CSC,05/12/2018,Scholar Travel,Award Costs,Diversity Travel,PIN036541,387.9,
DFID,CSC,05/12/2018,Scholar Travel,Award Costs,Diversity Travel,PIN036541,543.61,
DFID,CSC,05/12/2018,Scholar Travel,Award Costs,Diversity Travel,PIN036541,556.06,
DFID,CSC,05/12/2018,Scholar Travel,Award Costs,Diversity Travel,PIN036541,527.69,
DFID,CSC,05/12/2018,Scholar Travel,Award Costs,Diversity Travel,PIN036541,418.58,
DFID,CSC,05/12/2018,Scholar Travel,Award Costs,Diversity Travel,PIN036541,290.61,
DFID,CSC,05/12/2018,Scholar Travel,Award Costs,Diversity Travel,PIN036541,423.08,
DFID,CSC,05/12/2018,Scholar Travel,Award Costs,Diversity Travel,PIN036541,436.41,
DFID,CSC,05/12/2018,Scholar Travel,Award Costs,Diversity Travel,PIN036541,369.91,
DFID,CSC,05/12/2018,Scholar Travel,Award Costs,Diversity Travel,PIN036542,17.7,
DFID,CSC,05/12/2018,Scholar Travel,Award Costs,Diversity Travel,PIN036542,631.5,
DFID,CSC,05/12/2018,Scholar Travel,Award Costs,Diversity Travel,PIN036542,305.4,
DFID,CSC,05/12/2018,Scholar Travel,Award Costs,Diversity Travel,PIN036542,490.62,
DFID,CSC,05/12/2018,Scholar Travel,Award Costs,Diversity Travel,PIN036542,625.5,
DFID,CSC,05/12/2018,Scholar Travel,Award Costs,Diversity Travel,PIN036542,373.9,
DFID,CSC,05/12/2018,Scholar Travel,Award Costs,Diversity Travel,PIN036542,501.5,
DFID,CSC,05/12/2018,Scholar Travel,Award Costs,Diversity Travel,PIN036542,898.4,
DFID,CSC,05/12/2018,Scholar Travel,Award Costs,Diversity Travel,PIN036542,433.7,
DFID,CSC,05/12/2018,Scholar Travel,Award Costs,Diversity Travel,PIN036542,540.2,
DFID,CSC,05/12/2018,Scholar Travel,Award Costs,Diversity Travel,PIN036542,633.7,
DFID,CSC,05/12/2018,Scholar Travel,Award Costs,Diversity Travel,PIN036542,623.8,
DFID,CSC,05/12/2018,Scholar Travel,Award Costs,Diversity Travel,PIN036542,592,
DFID,CSC,05/12/2018,Scholar Travel,Award Costs,Diversity Travel,PIN036542,899.1,
DFID,CSC,05/12/2018,Scholar Travel,Award Costs,Diversity Travel,PIN036542,404.8,
DFID,CSC,05/12/2018,Scholar Travel,Award Costs,Diversity Travel,PIN036542,521.16,
DFID,CSC,05/12/2018,Scholar Travel,Award Costs,Diversity Travel,PIN036542,638.4,
DFID,CSC,05/12/2018,Scholar Travel,Award Costs,Diversity Travel,PIN036542,493.07,
DFID,CSC,05/12/2018,Scholar Travel,Award Costs,Diversity Travel,PIN036542,451.9,
DFID,CSC,05/12/2018,Visa Costs,Award Costs,Diversity Travel,PIN036542,304.4,
DFID,CSC,05/12/2018,Scholar Travel,Award Costs,Diversity Travel,PIN036542,725.7,
DFID,CSC,05/12/2018,Scholar Travel,Award Costs,Diversity Travel,PIN036542,418.41,
DFID,CSC,05/12/2018,Scholar Travel,Award Costs,Diversity Travel,PIN036542,702.9,
DFID,CSC,05/12/2018,Scholar Travel,Award Costs,Diversity Travel,PIN036542,547.76,
DFID,CSC,05/12/2018,Scholar Travel,Award Costs,Diversity Travel,PIN036542,594.1,
DFID,CSC,05/12/2018,Scholar Travel,Award Costs,Diversity Travel,PIN036542,224.5,
DFID,CSC,05/12/2018,Scholar Travel,Award Costs,Diversity Travel,PIN036542,566.9,
DFID,CSC,05/12/2018,Scholar Travel,Award Costs,Diversity Travel,PIN036542,21,
DFID,CSC,05/12/2018,Scholar Travel,Award Costs,Diversity Travel,PIN036542,697.6,
DFID,CSC,05/12/2018,Scholar Travel,Award Costs,Diversity Travel,PIN036542,605.1,
DFID,CSC,05/12/2018,Fieldwork Airfare,Award Costs,Diversity Travel,PIN036542,916.94,
DFID,CSC,05/12/2018,Scholar Travel,Award Costs,Diversity Travel,PIN036542,648.8,
DFID,CSC,05/12/2018,Scholar Travel,Award Costs,Diversity Travel,PIN036542,543.7,
DFID,CSC,05/12/2018,Scholar Travel,Award Costs,Diversity Travel,PIN036542,566.2,
DFID,CSC,05/12/2018,Scholar Travel,Award Costs,Diversity Travel,PIN036542,392.7,
DFID,CSC,05/12/2018,Scholar Travel,Award Costs,Diversity Travel,PIN036542,-521.66,
DFID,CSC,05/12/2018,Scholar Travel,Award Costs,Diversity Travel,PIN036543,600.91,
DFID,CSC,05/12/2018,Scholar Travel,Award Costs,Diversity Travel,PIN036543,426.58,
DFID,CSC,05/12/2018,Scholar Travel,Award Costs,Diversity Travel,PIN036543,616.06,
DFID,CSC,05/12/2018,Scholar Travel,Award Costs,Diversity Travel,PIN036543,286.91,
DFID,CSC,05/12/2018,Scholar Travel,Award Costs,Diversity Travel,PIN036543,494.56,
DFID,CSC,05/12/2018,Scholar Travel,Award Costs,Diversity Travel,PIN036543,622.78,
DFID,CSC,05/12/2018,Scholar Travel,Award Costs,Diversity Travel,PIN036543,446.61,
DFID,CSC,05/12/2018,Scholar Travel,Award Costs,Diversity Travel,PIN036543,645.91,
DFID,CSC,05/12/2018,Scholar Travel,Award Costs,Diversity Travel,PIN036543,451.02,
DFID,CSC,05/12/2018,Fieldwork Airfare,Award Costs,Diversity Travel,PIN036543,1044.31,
DFID,CSC,05/12/2018,Scholar Travel,Award Costs,Diversity Travel,PIN036543,722.02,
DFID,CSC,05/12/2018,Scholar Travel,Award Costs,Diversity Travel,PIN036543,374.31,
DFID,CSC,05/12/2018,Scholar Travel,Award Costs,Diversity Travel,PIN036543,290.61,
DFID,CSC,05/12/2018,Scholar Travel,Award Costs,Diversity Travel,PIN036543,306.91,
DFID,CSC,05/12/2018,Scholar Travel,Award Costs,Diversity Travel,PIN036543,457.76,
DFID,CSC,05/12/2018,Scholar Travel,Award Costs,Diversity Travel,PIN036543,427.98,
DFID,CSC,05/12/2018,Scholar Travel,Award Costs,Diversity Travel,PIN036543,361.08,
DFID,CSC,05/12/2018,Scholar Travel,Award Costs,Diversity Travel,PIN036543,541.91,
DFID,CSC,05/12/2018,Scholar Travel,Award Costs,Diversity Travel,PIN036543,290.61,
DFID,CSC,05/12/2018,Scholar Travel,Award Costs,Diversity Travel,PIN036543,601.31,
DFID,CSC,05/12/2018,Scholar Travel,Award Costs,Diversity Travel,PIN036543,494.41,
DFID,CSC,05/12/2018,Scholar Travel,Award Costs,Diversity Travel,PIN036543,544.56,
DFID,CSC,05/12/2018,Scholar Travel,Award Costs,Diversity Travel,PIN036543,503.5,
DFID,CSC,05/12/2018,Scholar Travel,Award Costs,Diversity Travel,PIN036543,413.08,
DFID,CSC,05/12/2018,Scholar Travel,Award Costs,Diversity Travel,PIN036543,504.36,
DFID,CSC,05/12/2018,Scholar Travel,Award Costs,Diversity Travel,PIN036543,515.91,
DFID,CSC,05/12/2018,Scholar Travel,Award Costs,Diversity Travel,PIN036543,509.91,
DFID,CSC,05/12/2018,Scholar Travel,Award Costs,Diversity Travel,PIN036543,616.31,
DFID,CSC,05/12/2018,Fieldwork Airfare,Award Costs,Diversity Travel,PIN036543,972.32,
DFID,CSC,05/12/2018,Scholar Travel,Award Costs,Diversity Travel,PIN036543,403.1,
DFID,CSC,05/12/2018,Scholar Travel,Award Costs,Diversity Travel,PIN036543,306.91,
DFID,CSC,05/12/2018,Scholar Travel,Award Costs,Diversity Travel,PIN036543,436.21,
DFID,CSC,05/12/2018,Scholar Travel,Award Costs,Diversity Travel,PIN036543,456.68,
DFID,CSC,05/12/2018,Scholar Travel,Award Costs,Diversity Travel,PIN036543,527.91,
DFID,CSC,05/12/2018,Scholar Travel,Award Costs,Diversity Travel,PIN036543,441.46,
DFID,CSC,05/12/2018,Scholar Travel,Award Costs,Diversity Travel,PIN036543,582.41,
DFID,CSC,05/12/2018,Scholar Travel,Award Costs,Diversity Travel,PIN036543,360.01,
DFID,CSC,05/12/2018,Scholar Travel,Award Costs,Diversity Travel,PIN036543,616.31,
DFID,CSC,05/12/2018,Scholar Travel,Award Costs,Diversity Travel,PIN036543,599.41,
DFID,CSC,05/12/2018,Scholar Travel,Award Costs,Diversity Travel,PIN036543,372.91,
DFID,CSC,05/12/2018,Scholar Travel,Award Costs,Diversity Travel,PIN036543,302.01,
DFID,CSC,05/12/2018,Scholar Travel,Award Costs,Diversity Travel,PIN036543,542.71,
DFID,CSC,05/12/2018,Scholar Travel,Award Costs,Diversity Travel,PIN036543,456.68,
DFID,CSC,05/12/2018,Scholar Travel,Award Costs,Diversity Travel,PIN036543,311.91,
DFID,CSC,05/12/2018,Scholar Travel,Award Costs,Diversity Travel,PIN036543,519.27,
DFID,CSC,05/12/2018,Scholar Travel,Award Costs,Diversity Travel,PIN036543,413.32,
DFID,CSC,05/12/2018,Scholar Travel,Award Costs,Diversity Travel,PIN036543,593.76,
DFID,CSC,05/12/2018,Scholar Travel,Award Costs,Diversity Travel,PIN036543,509.57,
DFID,CSC,05/12/2018,Scholar Travel,Award Costs,Diversity Travel,PIN036543,427.01,
DFID,CSC,05/12/2018,Scholar Travel,Award Costs,Diversity Travel,PIN036543,649.71,
DFID,CSC,05/12/2018,Scholar Travel,Award Costs,Diversity Travel,PIN036543,510.98,
DFID,CSC,05/12/2018,Scholar Travel,Award Costs,Diversity Travel,PIN036543,17.1,
DFID,CSC,05/12/2018,Scholar Travel,Award Costs,Diversity Travel,PIN036543,446.08,
DFID,CSC,05/12/2018,Scholar Travel,Award Costs,Diversity Travel,PIN036543,412.41,
DFID,CSC,05/12/2018,Scholar Travel,Award Costs,Diversity Travel,PIN036543,392.81,
DFID,CSC,05/12/2018,Scholar Travel,Award Costs,Diversity Travel,PIN036544,385.4,
DFID,CSC,05/12/2018,Scholar Travel,Award Costs,Diversity Travel,PIN036544,486.96,
DFID,CSC,05/12/2018,Scholar Travel,Award Costs,Diversity Travel,PIN036544,520.37,
DFID,CSC,05/12/2018,Scholar Travel,Award Costs,Diversity Travel,PIN036544,402.28,
DFID,CSC,05/12/2018,Scholar Travel,Award Costs,Diversity Travel,PIN036544,818.02,
DFID,CSC,05/12/2018,Scholar Travel,Award Costs,Diversity Travel,PIN036544,543.01,
DFID,CSC,05/12/2018,Scholar Travel,Award Costs,Diversity Travel,PIN036544,306.91,
DFID,CSC,05/12/2018,Scholar Travel,Award Costs,Diversity Travel,PIN036544,431.02,
DFID,CSC,05/12/2018,Scholar Travel,Award Costs,Diversity Travel,PIN036544,478.69,
DFID,CSC,05/12/2018,Scholar Travel,Award Costs,Diversity Travel,PIN036544,594.06,
DFID,CSC,05/12/2018,Scholar Travel,Award Costs,Diversity Travel,PIN036544,306.91,
DFID,CSC,05/12/2018,Scholar Travel,Award Costs,Diversity Travel,PIN036544,442.46,
DFID,CSC,05/12/2018,Scholar Travel,Award Costs,Diversity Travel,PIN036544,686.31,
DFID,CSC,05/12/2018,Scholar Travel,Award Costs,Diversity Travel,PIN036544,463.06,
DFID,CSC,05/12/2018,Scholar Travel,Award Costs,Diversity Travel,PIN036544,366.01,
DFID,CSC,05/12/2018,Scholar Travel,Award Costs,Diversity Travel,PIN036544,381.91,
DFID,CSC,07/12/2018,Organisation Subscriptions,Programme Costs,University of Bath,PIN036545,600,
DFID,CSC,07/12/2018,Tuition Fee,Award Costs,London South Bank University,PIN036546,4000,
DFID,CSC,07/12/2018,Tuition Fee,Award Costs,London South Bank University,PIN036546,42533.37,Tuition fees for 11 scholars
DFID,CSC,07/12/2018,Tuition Fee,Award Costs,University of Oxford Development Trust Fund,PIN036547,137652,Tuition fees for 15 scholars
DFID,CSC,07/12/2018,Award Support Costs,Award Costs,University of Reading,PIN036548,5000,
DFID,CSC,07/12/2018,Award Support Costs,Award Costs,University of Reading,PIN036549,3500,
DFID,CSC,07/12/2018,Award Support Costs,Award Costs,University of Reading,PIN036550,5000,
DFID,CSC,07/12/2018,Award Support Costs,Award Costs,University of Reading,PIN036551,5000,
DFID,CSC,07/12/2018,Tuition Fee,Award Costs,University of Reading,PIN036552,15464,
DFID,CSC,07/12/2018,Tuition Fee,Award Costs,University of Reading,PIN036553,14720,
DFID,CSC,07/12/2018,Visa Costs,Award Costs,University of Leicester,PIN036554,16.57,
DFID,CSC,07/12/2018,Scholar Travel,Award Costs,University of Leicester,PIN036554,225.1,
DFID,CSC,07/12/2018,Tuition Fee,Award Costs,University of Leicester,PIN036554,15405,
DFID,CSC,07/12/2018,Visa Costs,Award Costs,University of Leicester,PIN036555,113.32,
DFID,CSC,07/12/2018,Scholar Travel,Award Costs,University of Leicester,PIN036555,654.3,
DFID,CSC,07/12/2018,Tuition Fee,Award Costs,University of Leicester,PIN036555,19070,
DFID,CSC,07/12/2018,Visa Costs,Award Costs,University of Leicester,PIN036556,47.2,
DFID,CSC,07/12/2018,Scholar Travel,Award Costs,University of Leicester,PIN036556,524.9,
DFID,CSC,07/12/2018,Tuition Fee,Award Costs,University of Leicester,PIN036556,19070,
DFID,CSC,07/12/2018,Tuition Fee,Award Costs,Coventry University,PIN036557,10480,
DFID,CSC,07/12/2018,Tuition Fee,Award Costs,"Lincoln college, Oxford",PIN036558,18000,
DFID,CSC,07/12/2018,Tuition Fee,Award Costs,"Lincoln college, Oxford",PIN036558,18000,
DFID,CSC,07/12/2018,Tuition Fee,Award Costs,The University of Warwick,PIN036559,22500,
DFID,CSC,07/12/2018,Tuition Fee,Award Costs,University of Sheffield,PIN036560,18000,
DFID,CSC,07/12/2018,Tuition Fee,Award Costs,University of Kent,PIN036561,14720,
DFID,CSC,07/12/2018,Tuition Fee,Award Costs,University of Kent,PIN036562,12160,
DFID,CSC,07/12/2018,Tuition Fee,Award Costs,University of Kent,PIN036563,14720,
DFID,CSC,07/12/2018,Tuition Fee,Award Costs,University of Kent,PIN036564,18400,
DFID,CSC,07/12/2018,Tuition Fee,Award Costs,University of Reading,PIN036565,15008,
DFID,CSC,07/12/2018,Tuition Fee,Award Costs,University of Reading,PIN036566,15088,
DFID,CSC,07/12/2018,Tuition Fee,Award Costs,University of Reading,PIN036567,14720,
DFID,CSC,07/12/2018,Tuition Fee,Award Costs,University of Kent,PIN036568,12160,
DFID,CSC,07/12/2018,Tuition Fee,Award Costs,Bangor University,PIN036570,10800,
DFID,CSC,07/12/2018,Award Support Costs,Award Costs,Bangor University,PIN036570,2000,
DFID,CSC,07/12/2018,Tuition Fee,Award Costs,The Cambridge Commonwealth Trust,PIN036571,180000,Tuition fees for 8 scholars
DFID,CSC,07/12/2018,Scholar Allowances,Award Costs,University of Stirling,PIN036572,225,
DFID,CSC,07/12/2018,Scholar Allowances,Award Costs,University of Stirling,PIN036572,200,
DFID,CSC,07/12/2018,Visa Costs,Award Costs,University of Stirling,PIN036572,345.97,
DFID,CSC,07/12/2018,Scholar Travel,Award Costs,University of Stirling,PIN036572,520.4,
DFID,CSC,07/12/2018,Visa Costs,Award Costs,University of Glasgow,PIN036573,557.22,
DFID,CSC,07/12/2018,Scholar Allowances,Award Costs,University of Stirling,PIN036574,225,
DFID,CSC,07/12/2018,Scholar Allowances,Award Costs,University of Stirling,PIN036574,200,
DFID,CSC,07/12/2018,Visa Costs,Award Costs,University of Stirling,PIN036574,101.67,
DFID,CSC,07/12/2018,Scholar Travel,Award Costs,University of Stirling,PIN036574,931.2,
DFID,CSC,07/12/2018,Visa Costs,Award Costs,University of Reading,PIN036575,100.69,
DFID,CSC,07/12/2018,Scholar Allowances,Award Costs,University of Reading,PIN036575,500,
DFID,CSC,07/12/2018,Scholar Allowances,Award Costs,University of Reading,PIN036575,450,
DFID,CSC,07/12/2018,Scholar Allowances,Award Costs,University of Reading,PIN036575,400,
DFID,CSC,07/12/2018,Scholar Travel,Award Costs,University of Reading,PIN036575,38,
DFID,CSC,07/12/2018,Scholar Travel,Award Costs,University of Reading,PIN036575,843.92,
DFID,CSC,07/12/2018,Scholar Travel,Award Costs,University of Reading,PIN036575,1208.9,
DFID,CSC,07/12/2018,Scholar Travel,Award Costs,University of Stirling,PIN036576,900,
DFID,CSC,07/12/2018,Scholar Allowances,Award Costs,Queen Mary University of London,PIN036577,600,
DFID,CSC,07/12/2018,Scholar Allowances,Award Costs,Queen Mary University of London,PIN036577,675,
DFID,CSC,07/12/2018,Visa Costs,Award Costs,Queen Mary University of London,PIN036577,202.48,
DFID,CSC,07/12/2018,Scholar Travel,Award Costs,Queen Mary University of London,PIN036577,1552.5,
DFID,CSC,07/12/2018,Scholar Travel,Award Costs,London School of Economics,PIN036578,1900,
DFID,CSC,07/12/2018,Visa Costs,Award Costs,London School of Economics,PIN036578,74,
DFID,CSC,07/12/2018,Scholar Allowances,Award Costs,London School of Economics,PIN036578,1125,
DFID,CSC,07/12/2018,Scholar Allowances,Award Costs,London School of Economics,PIN036578,800,
DFID,CSC,07/12/2018,Scholar Allowances,Award Costs,London School of Economics,PIN036578,192,
DFID,CSC,07/12/2018,Scholar Travel,Award Costs,London School of Economics,PIN036578,1854.38,
DFID,CSC,07/12/2018,Scholar Stipend,Award Costs,Scholar,PIN036584,1776.25,
DFID,CSC,07/12/2018,Scholar Stipend,Award Costs,Scholar,PIN036586,542,
DFID,CSC,12/12/2018,Scholar Allowances,Award Costs,Scholar,PIN036602,275,
DFID,CSC,12/12/2018,Scholar Stipend,Award Costs,Scholar,PIN036602,436.96,
DFID,CSC,12/12/2018,Scholar Allowances,Award Costs,Scholar,PIN036603,200,
DFID,CSC,12/12/2018,Scholar Stipend,Award Costs,Scholar,PIN036603,320.53,
DFID,CSC,12/12/2018,Scholar Allowances,Award Costs,Scholar,PIN036604,542.55,
DFID,CSC,12/12/2018,Scholar Allowances,Award Costs,Scholar,PIN036604,542.55,
DFID,CSC,14/12/2018,Scholar Engagement,Programme Costs,TFW Printers,PIN036607,196,
DFID,CSC,14/12/2018,Scholar Engagement,Programme Costs,TFW Printers,PIN036607,980,
DFID,CSC,14/12/2018,Alumni Engagement,Programme Costs,TFW Printers,PIN036608,702,
DFID,CSC,14/12/2018,Alumni Engagement,Programme Costs,TFW Printers,PIN036608,3510,
DFID,CSC,14/12/2018,Alumni Engagement,Programme Costs,TFW Printers,PIN036610,192,
DFID,CSC,14/12/2018,Scholar Engagement,Programme Costs,TFW Printers,PIN036610,960,
DFID,CSC,14/12/2018,Scholar Engagement,Programme Costs,TFW Printers,PIN036613,216,
DFID,CSC,14/12/2018,Scholar Engagement,Programme Costs,TFW Printers,PIN036613,1080,
DFID,CSC,14/12/2018,Scholar Engagement,Programme Costs,TFW Printers,PIN036614,1400,
DFID,CSC,14/12/2018,Immigration Health Surcharge,Award Costs,Scholar,PIN036617,150,
DFID,CSC,14/12/2018,Visa Costs,Award Costs,Scholar,PIN036617,494.2,
DFID,CSC,14/12/2018,Immigration Health Surcharge,Award Costs,Scholar,PIN036618,150,
DFID,CSC,14/12/2018,Visa Costs,Award Costs,Scholar,PIN036618,494.2,
DFID,CSC,14/12/2018,Immigration Health Surcharge,Award Costs,Scholar,PIN036619,75,
DFID,CSC,14/12/2018,Visa Costs,Award Costs,Scholar,PIN036619,494.2,
DFID,CSC,14/12/2018,Engagement,Programme Costs,DigitalMyWay,PIN036627,900,
BEIS,CSC,14/12/2018,Scholar Engagement,Award Costs,Graysons Restaurants Ltd,PIN036628,911.52,
DFID,CSC,14/12/2018,Alumni Engagement,Programme Costs,Juan Casasbuenas,PIN036629,1800,
DFID,CSC,14/12/2018,Scholar Stipend,Award Costs,Scholar,PIN036630,839.75,
DFID,CSC,19/12/2018,Scholar Stipend,Award Costs,Scholar,PIN036631,3990,
DFID,CSC,19/12/2018,Scholar Stipend,Award Costs,Scholar,PIN036632,3252,
BEIS,CSC,19/12/2018,Scholar Stipend,Award Costs,Scholar,PIN036633,4968,
BEIS,CSC,19/12/2018,Scholar Stipend,Award Costs,Scholar,PIN036634,6165,
BEIS,CSC,19/12/2018,Scholar Stipend,Award Costs,Scholar,PIN036635,4968,
BEIS,CSC,19/12/2018,Scholar Stipend,Award Costs,Scholar,PIN036636,6165,
DFID,CSC,19/12/2018,Scholar Stipend,Award Costs,Scholar,PIN036637,1155.28,
DFID,CSC,19/12/2018,Scholar Stipend,Award Costs,Scholar,PIN036638,1626,
DFID,CSC,19/12/2018,Scholar Stipend,Award Costs,Scholar,PIN036639,3252,
DFID,CSC,19/12/2018,Scholar Stipend,Award Costs,Scholar,PIN036640,1084,
DFID,CSC,19/12/2018,Scholar Stipend,Award Costs,Scholar,PIN036641,3252,
DFID,CSC,19/12/2018,Scholar Stipend,Award Costs,Scholar,PIN036642,3252,
DFID,CSC,19/12/2018,Scholar Stipend,Award Costs,Scholar,PIN036643,3252,
DFID,CSC,19/12/2018,Scholar Stipend,Award Costs,Scholar,PIN036644,3990,
DFID,CSC,19/12/2018,Scholar Stipend,Award Costs,Scholar,PIN036645,3252,
DFID,CSC,19/12/2018,Scholar Stipend,Award Costs,Scholar,PIN036646,1995,
DFID,CSC,19/12/2018,Scholar Stipend,Award Costs,Scholar,PIN036647,2153.15,
DFID,CSC,19/12/2018,Scholar Stipend,Award Costs,Scholar,PIN036648,1995,
DFID,CSC,19/12/2018,Scholar Stipend,Award Costs,Scholar,PIN036649,1626,
DFID,CSC,19/12/2018,Scholar Stipend,Award Costs,Scholar,PIN036650,1626,
DFID,CSC,19/12/2018,Scholar Stipend,Award Costs,Scholar,PIN036651,1995,
DFID,CSC,19/12/2018,Scholar Stipend,Award Costs,Scholar,PIN036652,1565.12,
DFID,CSC,19/12/2018,Scholar Stipend,Award Costs,Scholar,PIN036653,542,
DFID,CSC,19/12/2018,Scholar Stipend,Award Costs,Scholar,PIN036654,1995,
DFID,CSC,19/12/2018,Scholar Stipend,Award Costs,Scholar,PIN036655,1626,
DFID,CSC,19/12/2018,Scholar Stipend,Award Costs,Scholar,PIN036656,3990,
DFID,CSC,19/12/2018,Scholar Stipend,Award Costs,Scholar,PIN036657,3252,
DFID,CSC,19/12/2018,Scholar Stipend,Award Costs,Scholar,PIN036658,3252,
DFID,CSC,19/12/2018,Scholar Stipend,Award Costs,Scholar,PIN036659,3252,
DFID,CSC,19/12/2018,Scholar Stipend,Award Costs,Scholar,PIN036660,3990,
DFID,CSC,19/12/2018,Scholar Stipend,Award Costs,Scholar,PIN036661,3252,
DFID,CSC,19/12/2018,Scholar Stipend,Award Costs,Scholar,PIN036662,3252,
DFID,CSC,19/12/2018,Scholar Stipend,Award Costs,Scholar,PIN036663,3990,
DFID,CSC,19/12/2018,Scholar Stipend,Award Costs,Scholar,PIN036664,3252,
DFID,CSC,19/12/2018,Scholar Stipend,Award Costs,Scholar,PIN036665,3990,
DFID,CSC,19/12/2018,Scholar Stipend,Award Costs,Scholar,PIN036666,3252,
DFID,CSC,19/12/2018,Scholar Stipend,Award Costs,Scholar,PIN036667,3990,
DFID,CSC,19/12/2018,Scholar Stipend,Award Costs,Scholar,PIN036668,3252,
DFID,CSC,19/12/2018,Scholar Stipend,Award Costs,Scholar,PIN036669,3252,
DFID,CSC,19/12/2018,Scholar Stipend,Award Costs,Scholar,PIN036670,3252,
DFID,CSC,19/12/2018,Scholar Stipend,Award Costs,Scholar,PIN036671,3252,
DFID,CSC,19/12/2018,Scholar Stipend,Award Costs,Scholar,PIN036672,3252,
DFID,CSC,19/12/2018,Scholar Stipend,Award Costs,Scholar,PIN036673,3252,
DFID,CSC,19/12/2018,Scholar Stipend,Award Costs,Scholar,PIN036674,3990,
DFID,CSC,19/12/2018,Scholar Stipend,Award Costs,Scholar,PIN036675,3252,
DFID,CSC,19/12/2018,Scholar Stipend,Award Costs,Scholar,PIN036676,3252,
DFID,CSC,19/12/2018,Scholar Stipend,Award Costs,Scholar,PIN036677,3252,
DFID,CSC,19/12/2018,Scholar Stipend,Award Costs,Scholar,PIN036678,3252,
DFID,CSC,19/12/2018,Scholar Stipend,Award Costs,Scholar,PIN036679,3990,
DFID,CSC,19/12/2018,Scholar Stipend,Award Costs,Scholar,PIN036680,3990,
DFID,CSC,19/12/2018,Scholar Stipend,Award Costs,Scholar,PIN036681,3990,
DFID,CSC,19/12/2018,Scholar Stipend,Award Costs,Scholar,PIN036682,3990,
DFID,CSC,19/12/2018,Scholar Stipend,Award Costs,Scholar,PIN036683,3252,
DFID,CSC,19/12/2018,Scholar Stipend,Award Costs,Scholar,PIN036684,3252,
DFID,CSC,19/12/2018,Scholar Stipend,Award Costs,Scholar,PIN036685,3990,
DFID,CSC,19/12/2018,Scholar Stipend,Award Costs,Scholar,PIN036686,3990,
DFID,CSC,19/12/2018,Scholar Stipend,Award Costs,Scholar,PIN036687,3252,
DFID,CSC,19/12/2018,Scholar Stipend,Award Costs,Scholar,PIN036688,3252,
DFID,CSC,19/12/2018,Scholar Stipend,Award Costs,Scholar,PIN036689,3252,
DFID,CSC,19/12/2018,Scholar Stipend,Award Costs,Scholar,PIN036690,3252,
DFID,CSC,19/12/2018,Scholar Stipend,Award Costs,Scholar,PIN036691,3990,
DFID,CSC,19/12/2018,Scholar Stipend,Award Costs,Scholar,PIN036692,3252,
DFID,CSC,19/12/2018,Scholar Stipend,Award Costs,Scholar,PIN036693,3990,
DFID,CSC,19/12/2018,Scholar Stipend,Award Costs,Scholar,PIN036694,3252,
DFID,CSC,19/12/2018,Scholar Stipend,Award Costs,Scholar,PIN036695,3252,
DFID,CSC,19/12/2018,Scholar Stipend,Award Costs,Scholar,PIN036696,3252,
DFID,CSC,19/12/2018,Scholar Stipend,Award Costs,Scholar,PIN036697,3990,
DFID,CSC,19/12/2018,Scholar Stipend,Award Costs,Scholar,PIN036698,3252,
DFID,CSC,19/12/2018,Scholar Stipend,Award Costs,Scholar,PIN036699,3990,
DFID,CSC,19/12/2018,Scholar Stipend,Award Costs,Scholar,PIN036700,3252,
DFID,CSC,19/12/2018,Scholar Stipend,Award Costs,Scholar,PIN036701,3252,
DFID,CSC,19/12/2018,Scholar Stipend,Award Costs,Scholar,PIN036702,3990,
DFID,CSC,19/12/2018,Scholar Stipend,Award Costs,Scholar,PIN036703,3252,
DFID,CSC,19/12/2018,Scholar Stipend,Award Costs,Scholar,PIN036704,3252,
BEIS,CSC,19/12/2018,Scholar Stipend,Award Costs,Scholar,PIN036705,4968,
DFID,CSC,19/12/2018,Scholar Stipend,Award Costs,Scholar,PIN036706,3252,
DFID,CSC,19/12/2018,Scholar Stipend,Award Costs,Scholar,PIN036707,3252,
DFID,CSC,19/12/2018,Scholar Stipend,Award Costs,Scholar,PIN036708,3252,
DFID,CSC,19/12/2018,Scholar Stipend,Award Costs,Scholar,PIN036709,3252,
DFID,CSC,19/12/2018,Scholar Stipend,Award Costs,Scholar,PIN036710,3252,
DFID,CSC,19/12/2018,Scholar Stipend,Award Costs,Scholar,PIN036711,3252,
DFID,CSC,19/12/2018,Scholar Stipend,Award Costs,Scholar,PIN036712,3990,
DFID,CSC,19/12/2018,Scholar Stipend,Award Costs,Scholar,PIN036713,3252,
DFID,CSC,19/12/2018,Scholar Stipend,Award Costs,Scholar,PIN036714,3252,
DFID,CSC,19/12/2018,Scholar Stipend,Award Costs,Scholar,PIN036715,3252,
DFID,CSC,19/12/2018,Scholar Stipend,Award Costs,Scholar,PIN036716,3252,
BEIS,CSC,19/12/2018,Scholar Stipend,Award Costs,Scholar,PIN036717,4968,
DFID,CSC,19/12/2018,Scholar Stipend,Award Costs,Scholar,PIN036718,1626,
DFID,CSC,19/12/2018,Scholar Stipend,Award Costs,Scholar,PIN036719,1626,
DFID,CSC,19/12/2018,Scholar Stipend,Award Costs,Scholar,PIN036720,3252,
DFID,CSC,19/12/2018,Scholar Stipend,Award Costs,Scholar,PIN036721,3252,
DFID,CSC,19/12/2018,Scholar Stipend,Award Costs,Scholar,PIN036722,3252,
DFID,CSC,19/12/2018,Scholar Stipend,Award Costs,Scholar,PIN036723,3252,
DFID,CSC,19/12/2018,Scholar Stipend,Award Costs,Scholar,PIN036724,3252,
DFID,CSC,19/12/2018,Scholar Stipend,Award Costs,Scholar,PIN036725,3252,
DFID,CSC,19/12/2018,Scholar Stipend,Award Costs,Scholar,PIN036726,3252,
DFID,CSC,19/12/2018,Scholar Stipend,Award Costs,Scholar,PIN036727,3252,
DFID,CSC,19/12/2018,Scholar Stipend,Award Costs,Scholar,PIN036728,3252,
DFID,CSC,19/12/2018,Scholar Stipend,Award Costs,Scholar,PIN036729,3252,
DFID,CSC,19/12/2018,Scholar Stipend,Award Costs,Scholar,PIN036730,3252,
DFID,CSC,19/12/2018,Scholar Stipend,Award Costs,Scholar,PIN036731,3252,
DFID,CSC,19/12/2018,Scholar Stipend,Award Costs,Scholar,PIN036732,3252,
DFID,CSC,19/12/2018,Scholar Stipend,Award Costs,Scholar,PIN036733,1626,
DFID,CSC,19/12/2018,Scholar Stipend,Award Costs,Scholar,PIN036734,3252,
DFID,CSC,19/12/2018,Scholar Stipend,Award Costs,Scholar,PIN036735,3216.39,
DFID,CSC,19/12/2018,Scholar Stipend,Award Costs,Scholar,PIN036736,3252,
DFID,CSC,19/12/2018,Scholar Stipend,Award Costs,Scholar,PIN036737,3252,
DFID,CSC,19/12/2018,Scholar Stipend,Award Costs,Scholar,PIN036738,3252,
DFID,CSC,19/12/2018,Scholar Stipend,Award Costs,Scholar,PIN036739,3252,
DFID,CSC,19/12/2018,Scholar Stipend,Award Costs,Scholar,PIN036740,1661.64,
DFID,CSC,19/12/2018,Scholar Stipend,Award Costs,Scholar,PIN036741,1618.58,
DFID,CSC,19/12/2018,Scholar Stipend,Award Costs,Scholar,PIN036742,3252,
DFID,CSC,19/12/2018,Scholar Stipend,Award Costs,Scholar,PIN036743,3252,
DFID,CSC,19/12/2018,Scholar Stipend,Award Costs,Scholar,PIN036744,1267.19,
DFID,CSC,19/12/2018,Scholar Stipend,Award Costs,Scholar,PIN036745,3252,
DFID,CSC,19/12/2018,Scholar Stipend,Award Costs,Scholar,PIN036746,3252,
DFID,CSC,19/12/2018,Scholar Stipend,Award Costs,Scholar,PIN036747,3252,
DFID,CSC,19/12/2018,Scholar Stipend,Award Costs,Scholar,PIN036748,3252,
DFID,CSC,19/12/2018,Scholar Stipend,Award Costs,Scholar,PIN036749,3252,
DFID,CSC,19/12/2018,Scholar Stipend,Award Costs,Scholar,PIN036750,3252,
DFID,CSC,19/12/2018,Scholar Stipend,Award Costs,Scholar,PIN036751,3990,
DFID,CSC,19/12/2018,Scholar Stipend,Award Costs,Scholar,PIN036752,3252,
DFID,CSC,19/12/2018,Scholar Stipend,Award Costs,Scholar,PIN036753,3252,
DFID,CSC,19/12/2018,Scholar Stipend,Award Costs,Scholar,PIN036754,3252,
DFID,CSC,19/12/2018,Scholar Stipend,Award Costs,Scholar,PIN036755,3252,
DFID,CSC,19/12/2018,Scholar Stipend,Award Costs,Scholar,PIN036756,3252,
DFID,CSC,19/12/2018,Scholar Stipend,Award Costs,Scholar,PIN036757,3252,
DFID,CSC,19/12/2018,Scholar Stipend,Award Costs,Scholar,PIN036758,3990,
DFID,CSC,19/12/2018,Scholar Stipend,Award Costs,Scholar,PIN036759,3990,
DFID,CSC,19/12/2018,Scholar Stipend,Award Costs,Scholar,PIN036760,3990,
DFID,CSC,19/12/2018,Scholar Stipend,Award Costs,Scholar,PIN036761,3990,
DFID,CSC,19/12/2018,Scholar Stipend,Award Costs,Scholar,PIN036762,3252,
DFID,CSC,19/12/2018,Scholar Stipend,Award Costs,Scholar,PIN036763,3260.71,
DFID,CSC,19/12/2018,Scholar Stipend,Award Costs,Scholar,PIN036764,3252,
DFID,CSC,19/12/2018,Scholar Stipend,Award Costs,Scholar,PIN036765,3252,
DFID,CSC,19/12/2018,Scholar Stipend,Award Costs,Scholar,PIN036766,3252,
DFID,CSC,19/12/2018,Scholar Stipend,Award Costs,Scholar,PIN036767,3252,
DFID,CSC,19/12/2018,Scholar Stipend,Award Costs,Scholar,PIN036768,3252,
DFID,CSC,19/12/2018,Scholar Stipend,Award Costs,Scholar,PIN036769,3252,
DFID,CSC,19/12/2018,Scholar Stipend,Award Costs,Scholar,PIN036770,3252,
DFID,CSC,19/12/2018,Scholar Stipend,Award Costs,Scholar,PIN036771,3252,
DFID,CSC,19/12/2018,Scholar Stipend,Award Costs,Scholar,PIN036772,3990,
DFID,CSC,19/12/2018,Scholar Stipend,Award Costs,Scholar,PIN036773,3252,
DFID,CSC,19/12/2018,Scholar Stipend,Award Costs,Scholar,PIN036774,3252,
DFID,CSC,19/12/2018,Scholar Stipend,Award Costs,Scholar,PIN036775,3252,
DFID,CSC,19/12/2018,Scholar Stipend,Award Costs,Scholar,PIN036776,2130,
DFID,CSC,19/12/2018,Scholar Stipend,Award Costs,Scholar,PIN036777,1626,
DFID,CSC,19/12/2018,Scholar Stipend,Award Costs,Scholar,PIN036778,1226.55,
DFID,CSC,19/12/2018,Scholar Stipend,Award Costs,Scholar,PIN036779,1626,
DFID,CSC,19/12/2018,Scholar Stipend,Award Costs,Scholar,PIN036780,1084,
DFID,CSC,19/12/2018,Scholar Stipend,Award Costs,Scholar,PIN036781,1626,
DFID,CSC,19/12/2018,Scholar Stipend,Award Costs,Scholar,PIN036782,1626,
DFID,CSC,19/12/2018,Scholar Stipend,Award Costs,Scholar,PIN036783,1626,
DFID,CSC,19/12/2018,Scholar Stipend,Award Costs,Scholar,PIN036784,2660,
DFID,CSC,19/12/2018,Scholar Stipend,Award Costs,Scholar,PIN036785,1626,
DFID,CSC,19/12/2018,Scholar Stipend,Award Costs,Scholar,PIN036786,1732.92,
DFID,CSC,19/12/2018,Scholar Stipend,Award Costs,Scholar,PIN036787,3990,
DFID,CSC,19/12/2018,Scholar Stipend,Award Costs,Scholar,PIN036788,3252,
DFID,CSC,19/12/2018,Scholar Stipend,Award Costs,Scholar,PIN036789,2646.57,
DFID,CSC,19/12/2018,Scholar Stipend,Award Costs,Scholar,PIN036790,3252,
DFID,CSC,19/12/2018,Scholar Stipend,Award Costs,Scholar,PIN036791,3252,
DFID,CSC,19/12/2018,Scholar Stipend,Award Costs,Scholar,PIN036792,3252,
DFID,CSC,19/12/2018,Scholar Stipend,Award Costs,Scholar,PIN036793,3252,
DFID,CSC,19/12/2018,Scholar Stipend,Award Costs,Scholar,PIN036794,3990,
DFID,CSC,19/12/2018,Scholar Stipend,Award Costs,Scholar,PIN036795,3252,
DFID,CSC,19/12/2018,Scholar Stipend,Award Costs,Scholar,PIN036796,3252,
DFID,CSC,19/12/2018,Scholar Stipend,Award Costs,Scholar,PIN036797,3252,
DFID,CSC,19/12/2018,Scholar Stipend,Award Costs,Scholar,PIN036798,3990,
DFID,CSC,19/12/2018,Scholar Stipend,Award Costs,Scholar,PIN036799,3990,
DFID,CSC,19/12/2018,Scholar Stipend,Award Costs,Scholar,PIN036800,3990,
DFID,CSC,19/12/2018,Scholar Stipend,Award Costs,Scholar,PIN036801,3252,
DFID,CSC,19/12/2018,Scholar Stipend,Award Costs,Scholar,PIN036802,3252,
DFID,CSC,19/12/2018,Scholar Stipend,Award Costs,Scholar,PIN036803,3990,
DFID,CSC,19/12/2018,Scholar Stipend,Award Costs,Scholar,PIN036804,3252,
DFID,CSC,19/12/2018,Scholar Stipend,Award Costs,Scholar,PIN036805,3252,
DFID,CSC,19/12/2018,Scholar Stipend,Award Costs,Scholar,PIN036806,3252,
DFID,CSC,19/12/2018,Scholar Stipend,Award Costs,Scholar,PIN036807,3252,
DFID,CSC,19/12/2018,Scholar Stipend,Award Costs,Scholar,PIN036808,3252,
DFID,CSC,19/12/2018,Scholar Stipend,Award Costs,Scholar,PIN036809,3990,
DFID,CSC,19/12/2018,Scholar Stipend,Award Costs,Scholar,PIN036810,3252,
DFID,CSC,19/12/2018,Scholar Stipend,Award Costs,Scholar,PIN036811,3990,
DFID,CSC,19/12/2018,Scholar Stipend,Award Costs,Scholar,PIN036812,3252,
BEIS,CSC,19/12/2018,Scholar Stipend,Award Costs,Scholar,PIN036813,4968,
BEIS,CSC,19/12/2018,Scholar Stipend,Award Costs,Scholar,PIN036814,4968,
BEIS,CSC,19/12/2018,Scholar Stipend,Award Costs,Scholar,PIN036815,4968,
BEIS,CSC,19/12/2018,Scholar Stipend,Award Costs,Scholar,PIN036816,4968,
BEIS,CSC,19/12/2018,Scholar Stipend,Award Costs,Scholar,PIN036817,4968,
BEIS,CSC,19/12/2018,Scholar Stipend,Award Costs,Scholar,PIN036818,4968,
BEIS,CSC,19/12/2018,Scholar Stipend,Award Costs,Scholar,PIN036819,4968,
BEIS,CSC,19/12/2018,Scholar Stipend,Award Costs,Scholar,PIN036820,6165,
BEIS,CSC,19/12/2018,Scholar Stipend,Award Costs,Scholar,PIN036821,4968,
BEIS,CSC,19/12/2018,Scholar Stipend,Award Costs,Scholar,PIN036822,4968,
BEIS,CSC,19/12/2018,Scholar Stipend,Award Costs,Scholar,PIN036823,4968,
BEIS,CSC,19/12/2018,Scholar Stipend,Award Costs,Scholar,PIN036824,4968,
BEIS,CSC,19/12/2018,Scholar Stipend,Award Costs,Scholar,PIN036825,6165,
BEIS,CSC,19/12/2018,Scholar Stipend,Award Costs,Scholar,PIN036826,4968,
BEIS,CSC,19/12/2018,Scholar Stipend,Award Costs,Scholar,PIN036827,4968,
DFID,CSC,19/12/2018,Scholar Stipend,Award Costs,Scholar,PIN036828,1626,
DFID,CSC,19/12/2018,Scholar Stipend,Award Costs,Scholar,PIN036829,3252,
DFID,CSC,19/12/2018,Scholar Stipend,Award Costs,Scholar,PIN036830,3252,
DFID,CSC,19/12/2018,Scholar Stipend,Award Costs,Scholar,PIN036831,1626,
DFID,CSC,19/12/2018,Scholar Stipend,Award Costs,Scholar,PIN036832,3252,
DFID,CSC,19/12/2018,Scholar Stipend,Award Costs,Scholar,PIN036833,3252,
DFID,CSC,19/12/2018,Scholar Stipend,Award Costs,Scholar,PIN036834,3252,
DFID,CSC,19/12/2018,Scholar Stipend,Award Costs,Scholar,PIN036835,3990,
DFID,CSC,19/12/2018,Scholar Stipend,Award Costs,Scholar,PIN036836,3252,
DFID,CSC,19/12/2018,Scholar Stipend,Award Costs,Scholar,PIN036837,3252,
DFID,CSC,19/12/2018,Scholar Stipend,Award Costs,Scholar,PIN036838,3252,
DFID,CSC,19/12/2018,Scholar Stipend,Award Costs,Scholar,PIN036839,3252,
DFID,CSC,19/12/2018,Scholar Stipend,Award Costs,Scholar,PIN036840,3252,
DFID,CSC,19/12/2018,Scholar Stipend,Award Costs,Scholar,PIN036841,1493.84,
DFID,CSC,19/12/2018,Scholar Stipend,Award Costs,Scholar,PIN036842,1626,
DFID,CSC,19/12/2018,Scholar Stipend,Award Costs,Scholar,PIN036843,3201.51,
DFID,CSC,19/12/2018,Scholar Stipend,Award Costs,Scholar,PIN036844,3005.7,
DFID,CSC,19/12/2018,Scholar Stipend,Award Costs,Scholar,PIN036845,3252,
DFID,CSC,19/12/2018,Scholar Stipend,Award Costs,Scholar,PIN036846,3252,
DFID,CSC,19/12/2018,Scholar Stipend,Award Costs,Scholar,PIN036847,3252,
DFID,CSC,19/12/2018,Scholar Stipend,Award Costs,Scholar,PIN036848,3252,
DFID,CSC,19/12/2018,Scholar Stipend,Award Costs,Scholar,PIN036849,3990,
DFID,CSC,19/12/2018,Scholar Stipend,Award Costs,Scholar,PIN036850,3252,
DFID,CSC,19/12/2018,Scholar Stipend,Award Costs,Scholar,PIN036851,3252,
DFID,CSC,19/12/2018,Scholar Stipend,Award Costs,Scholar,PIN036852,3252,
DFID,CSC,19/12/2018,Scholar Stipend,Award Costs,Scholar,PIN036853,3252,
DFID,CSC,19/12/2018,Scholar Stipend,Award Costs,Scholar,PIN036854,3252,
DFID,CSC,19/12/2018,Scholar Stipend,Award Costs,Scholar,PIN036855,3252,
DFID,CSC,19/12/2018,Scholar Stipend,Award Costs,Scholar,PIN036856,3990,
DFID,CSC,19/12/2018,Scholar Stipend,Award Costs,Scholar,PIN036857,3252,
DFID,CSC,19/12/2018,Scholar Stipend,Award Costs,Scholar,PIN036858,3252,
DFID,CSC,19/12/2018,Scholar Stipend,Award Costs,Scholar,PIN036859,3252,
DFID,CSC,19/12/2018,Scholar Stipend,Award Costs,Scholar,PIN036860,3252,
DFID,CSC,19/12/2018,Scholar Stipend,Award Costs,Scholar,PIN036861,3990,
DFID,CSC,19/12/2018,Scholar Stipend,Award Costs,Scholar,PIN036862,3252,
DFID,CSC,19/12/2018,Scholar Stipend,Award Costs,Scholar,PIN036863,3252,
DFID,CSC,19/12/2018,Scholar Stipend,Award Costs,Scholar,PIN036864,3990,
DFID,CSC,19/12/2018,Scholar Stipend,Award Costs,Scholar,PIN036865,3252,
DFID,CSC,19/12/2018,Scholar Stipend,Award Costs,Scholar,PIN036866,1084,
DFID,CSC,19/12/2018,Scholar Stipend,Award Costs,Scholar,PIN036867,1330,
DFID,CSC,19/12/2018,Scholar Stipend,Award Costs,Scholar,PIN036868,3990,
DFID,CSC,19/12/2018,Scholar Stipend,Award Costs,Scholar,PIN036869,3252,
DFID,CSC,19/12/2018,Scholar Stipend,Award Costs,Scholar,PIN036870,3252,
DFID,CSC,19/12/2018,Scholar Stipend,Award Costs,Scholar,PIN036871,3252,
DFID,CSC,19/12/2018,Scholar Stipend,Award Costs,Scholar,PIN036872,3252,
DFID,CSC,19/12/2018,Scholar Stipend,Award Costs,Scholar,PIN036873,3252,
DFID,CSC,19/12/2018,Scholar Stipend,Award Costs,Scholar,PIN036874,3252,
DFID,CSC,19/12/2018,Scholar Stipend,Award Costs,Scholar,PIN036875,3252,
DFID,CSC,19/12/2018,Scholar Stipend,Award Costs,Scholar,PIN036876,3252,
DFID,CSC,19/12/2018,Scholar Stipend,Award Costs,Scholar,PIN036877,3252,
DFID,CSC,19/12/2018,Scholar Stipend,Award Costs,Scholar,PIN036878,3252,
DFID,CSC,19/12/2018,Scholar Stipend,Award Costs,Scholar,PIN036879,3252,
BEIS,CSC,19/12/2018,Scholar Stipend,Award Costs,Scholar,PIN036880,4968,
DFID,CSC,19/12/2018,Scholar Stipend,Award Costs,Scholar,PIN036881,3252,
DFID,CSC,19/12/2018,Scholar Stipend,Award Costs,Scholar,PIN036882,3252,
DFID,CSC,19/12/2018,Scholar Stipend,Award Costs,Scholar,PIN036883,3990,
DFID,CSC,19/12/2018,Scholar Stipend,Award Costs,Scholar,PIN036884,3252,
DFID,CSC,19/12/2018,Scholar Stipend,Award Costs,Scholar,PIN036885,1626,
DFID,CSC,19/12/2018,Scholar Stipend,Award Costs,Scholar,PIN036886,3252,
DFID,CSC,19/12/2018,Scholar Stipend,Award Costs,Scholar,PIN036887,3252,
DFID,CSC,19/12/2018,Scholar Stipend,Award Costs,Scholar,PIN036888,3252,
DFID,CSC,19/12/2018,Scholar Stipend,Award Costs,Scholar,PIN036889,1493.84,
DFID,CSC,19/12/2018,Scholar Stipend,Award Costs,Scholar,PIN036890,1262.19,
DFID,CSC,19/12/2018,Scholar Stipend,Award Costs,Scholar,PIN036892,3252,
DFID,CSC,19/12/2018,Scholar Stipend,Award Costs,Scholar,PIN036893,1084,
DFID,CSC,19/12/2018,Scholar Stipend,Award Costs,Scholar,PIN036894,1626,
DFID,CSC,19/12/2018,Scholar Stipend,Award Costs,Scholar,PIN036895,1386.93,
DFID,CSC,19/12/2018,Scholar Stipend,Award Costs,Scholar,PIN036896,1626,
DFID,CSC,19/12/2018,Scholar Stipend,Award Costs,Scholar,PIN036897,1626,
DFID,CSC,19/12/2018,Scholar Stipend,Award Costs,Scholar,PIN036898,1333.47,
DFID,CSC,19/12/2018,Scholar Stipend,Award Costs,Scholar,PIN036899,1626,
DFID,CSC,19/12/2018,Scholar Stipend,Award Costs,Scholar,PIN036900,3252,
DFID,CSC,19/12/2018,Scholar Stipend,Award Costs,Scholar,PIN036901,3252,
DFID,CSC,19/12/2018,Scholar Stipend,Award Costs,Scholar,PIN036902,3990,
DFID,CSC,19/12/2018,Scholar Stipend,Award Costs,Scholar,PIN036903,3252,
DFID,CSC,19/12/2018,Scholar Stipend,Award Costs,Scholar,PIN036904,3990,
DFID,CSC,19/12/2018,Scholar Stipend,Award Costs,Scholar,PIN036905,3252,
DFID,CSC,19/12/2018,Scholar Stipend,Award Costs,Scholar,PIN036906,3252,
DFID,CSC,19/12/2018,Scholar Stipend,Award Costs,Scholar,PIN036907,3252,
DFID,CSC,19/12/2018,Scholar Stipend,Award Costs,Scholar,PIN036908,3252,
DFID,CSC,19/12/2018,Scholar Stipend,Award Costs,Scholar,PIN036909,3252,
DFID,CSC,19/12/2018,Scholar Stipend,Award Costs,Scholar,PIN036910,3252,
DFID,CSC,19/12/2018,Scholar Stipend,Award Costs,Scholar,PIN036911,1725.49,
DFID,CSC,19/12/2018,Scholar Stipend,Award Costs,Scholar,PIN036912,3990,
DFID,CSC,19/12/2018,Scholar Stipend,Award Costs,Scholar,PIN036913,3252,
DFID,CSC,19/12/2018,Scholar Stipend,Award Costs,Scholar,PIN036914,3252,
DFID,CSC,19/12/2018,Scholar Stipend,Award Costs,Scholar,PIN036915,3252,
DFID,CSC,19/12/2018,Scholar Stipend,Award Costs,Scholar,PIN036916,3252,
DFID,CSC,19/12/2018,Scholar Stipend,Award Costs,Scholar,PIN036917,3252,
DFID,CSC,19/12/2018,Scholar Stipend,Award Costs,Scholar,PIN036918,3990,
DFID,CSC,19/12/2018,Scholar Stipend,Award Costs,Scholar,PIN036919,3990,
DFID,CSC,19/12/2018,Scholar Stipend,Award Costs,Scholar,PIN036920,3252,
DFID,CSC,19/12/2018,Scholar Stipend,Award Costs,Scholar,PIN036921,3990,
DFID,CSC,19/12/2018,Scholar Stipend,Award Costs,Scholar,PIN036922,3990,
DFID,CSC,19/12/2018,Scholar Stipend,Award Costs,Scholar,PIN036923,3252,
DFID,CSC,19/12/2018,Scholar Stipend,Award Costs,Scholar,PIN036924,3252,
DFID,CSC,19/12/2018,Scholar Stipend,Award Costs,Scholar,PIN036925,3252,
DFID,CSC,19/12/2018,Scholar Stipend,Award Costs,Scholar,PIN036926,3252,
DFID,CSC,19/12/2018,Scholar Stipend,Award Costs,Scholar,PIN036927,2432.88,
DFID,CSC,19/12/2018,Scholar Stipend,Award Costs,Scholar,PIN036928,3990,
DFID,CSC,19/12/2018,Scholar Stipend,Award Costs,Scholar,PIN036929,3990,
DFID,CSC,19/12/2018,Scholar Stipend,Award Costs,Scholar,PIN036930,1626,
DFID,CSC,19/12/2018,Scholar Stipend,Award Costs,Scholar,PIN036931,3252,
DFID,CSC,19/12/2018,Scholar Stipend,Award Costs,Scholar,PIN036932,3252,
DFID,CSC,19/12/2018,Scholar Stipend,Award Costs,Scholar,PIN036933,3252,
DFID,CSC,19/12/2018,Scholar Stipend,Award Costs,Scholar,PIN036934,3252,
DFID,CSC,19/12/2018,Scholar Stipend,Award Costs,Scholar,PIN036935,3252,
DFID,CSC,19/12/2018,Scholar Stipend,Award Costs,Scholar,PIN036936,3252,
DFID,CSC,19/12/2018,Scholar Stipend,Award Costs,Scholar,PIN036937,1440.38,
DFID,CSC,19/12/2018,Scholar Stipend,Award Costs,Scholar,PIN036938,1964.03,
DFID,CSC,19/12/2018,Scholar Stipend,Award Costs,Scholar,PIN036939,1626,
DFID,CSC,19/12/2018,Scholar Stipend,Award Costs,Scholar,PIN036940,1084,
DFID,CSC,19/12/2018,Scholar Stipend,Award Costs,Scholar,PIN036941,1084,
DFID,CSC,19/12/2018,Scholar Stipend,Award Costs,Scholar,PIN036942,1626,
DFID,CSC,19/12/2018,Scholar Stipend,Award Costs,Scholar,PIN036943,1084,
DFID,CSC,19/12/2018,Scholar Stipend,Award Costs,Scholar,PIN036944,3252,
DFID,CSC,19/12/2018,Scholar Stipend,Award Costs,Scholar,PIN036945,3252,
DFID,CSC,19/12/2018,Scholar Stipend,Award Costs,Scholar,PIN036946,3252,
DFID,CSC,19/12/2018,Scholar Stipend,Award Costs,Scholar,PIN036947,3252,
DFID,CSC,19/12/2018,Scholar Stipend,Award Costs,Scholar,PIN036948,3252,
DFID,CSC,19/12/2018,Scholar Stipend,Award Costs,Scholar,PIN036949,3252,
DFID,CSC,19/12/2018,Scholar Stipend,Award Costs,Scholar,PIN036950,3990,
DFID,CSC,19/12/2018,Scholar Stipend,Award Costs,Scholar,PIN036951,3252,
DFID,CSC,19/12/2018,Scholar Stipend,Award Costs,Scholar,PIN036952,3252,
DFID,CSC,19/12/2018,Scholar Stipend,Award Costs,Scholar,PIN036953,3252,
DFID,CSC,19/12/2018,Scholar Stipend,Award Costs,Scholar,PIN036954,3252,
DFID,CSC,19/12/2018,Scholar Stipend,Award Costs,Scholar,PIN036955,3990,
DFID,CSC,19/12/2018,Scholar Stipend,Award Costs,Scholar,PIN036956,3252,
DFID,CSC,19/12/2018,Scholar Stipend,Award Costs,Scholar,PIN036957,1565.12,
DFID,CSC,19/12/2018,Scholar Stipend,Award Costs,Scholar,PIN036958,1565.12,
DFID,CSC,19/12/2018,Scholar Stipend,Award Costs,Scholar,PIN036959,3252,
DFID,CSC,19/12/2018,Scholar Stipend,Award Costs,Scholar,PIN036960,1626,
DFID,CSC,19/12/2018,Scholar Stipend,Award Costs,Scholar,PIN036961,1084,
DFID,CSC,19/12/2018,Scholar Stipend,Award Costs,Scholar,PIN036962,559.82,
DFID,CSC,19/12/2018,Scholar Stipend,Award Costs,Scholar,PIN036963,1330,
DFID,CSC,19/12/2018,Scholar Stipend,Award Costs,Scholar,PIN036964,3252,
DFID,CSC,19/12/2018,Scholar Stipend,Award Costs,Scholar,PIN036965,3252,
DFID,CSC,19/12/2018,Scholar Stipend,Award Costs,Scholar,PIN036966,3252,
DFID,CSC,19/12/2018,Scholar Stipend,Award Costs,Scholar,PIN036967,3252,
DFID,CSC,19/12/2018,Scholar Stipend,Award Costs,Scholar,PIN036968,3252,
DFID,CSC,19/12/2018,Scholar Stipend,Award Costs,Scholar,PIN036969,3252,
DFID,CSC,19/12/2018,Scholar Stipend,Award Costs,Scholar,PIN036970,3252,
DFID,CSC,19/12/2018,Scholar Stipend,Award Costs,Scholar,PIN036971,3252,
DFID,CSC,19/12/2018,Scholar Stipend,Award Costs,Scholar,PIN036972,3252,
DFID,CSC,19/12/2018,Scholar Stipend,Award Costs,Scholar,PIN036973,3990,
DFID,CSC,19/12/2018,Scholar Stipend,Award Costs,Scholar,PIN036974,3252,
DFID,CSC,19/12/2018,Scholar Stipend,Award Costs,Scholar,PIN036975,3252,
DFID,CSC,19/12/2018,Scholar Stipend,Award Costs,Scholar,PIN036976,3252,
DFID,CSC,19/12/2018,Scholar Stipend,Award Costs,Scholar,PIN036977,3252,
DFID,CSC,19/12/2018,Scholar Stipend,Award Costs,Scholar,PIN036978,3252,
DFID,CSC,19/12/2018,Scholar Stipend,Award Costs,Scholar,PIN036979,3990,
DFID,CSC,19/12/2018,Scholar Stipend,Award Costs,Scholar,PIN036980,3252,
DFID,CSC,19/12/2018,Scholar Stipend,Award Costs,Scholar,PIN036981,3252,
DFID,CSC,19/12/2018,Scholar Stipend,Award Costs,Scholar,PIN036982,3252,
DFID,CSC,19/12/2018,Scholar Stipend,Award Costs,Scholar,PIN036983,3252,
DFID,CSC,19/12/2018,Scholar Stipend,Award Costs,Scholar,PIN036984,3990,
DFID,CSC,19/12/2018,Scholar Stipend,Award Costs,Scholar,PIN036985,3252,
DFID,CSC,19/12/2018,Scholar Stipend,Award Costs,Scholar,PIN036986,3990,
DFID,CSC,19/12/2018,Scholar Stipend,Award Costs,Scholar,PIN036987,3990,
DFID,CSC,19/12/2018,Scholar Stipend,Award Costs,Scholar,PIN036988,3252,
DFID,CSC,19/12/2018,Scholar Stipend,Award Costs,Scholar,PIN036989,3252,
DFID,CSC,19/12/2018,Scholar Stipend,Award Costs,Scholar,PIN036990,3252,
DFID,CSC,19/12/2018,Scholar Stipend,Award Costs,Scholar,PIN036991,3990,
DFID,CSC,24/12/2018,Scholar Stipend,Award Costs,Scholar,PIN036992,3990,
DFID,CSC,19/12/2018,Scholar Stipend,Award Costs,Scholar,PIN036993,3252,
BEIS,CSC,19/12/2018,Scholar Stipend,Award Costs,Scholar,PIN036994,6165,
BEIS,CSC,19/12/2018,Scholar Stipend,Award Costs,Scholar,PIN036995,4968,
BEIS,CSC,19/12/2018,Scholar Stipend,Award Costs,Scholar,PIN036996,4968,
BEIS,CSC,19/12/2018,Scholar Stipend,Award Costs,Scholar,PIN036997,4968,
BEIS,CSC,19/12/2018,Scholar Stipend,Award Costs,Scholar,PIN036998,4291.99,
BEIS,CSC,19/12/2018,Scholar Stipend,Award Costs,Scholar,PIN036999,4968,
BEIS,CSC,19/12/2018,Scholar Stipend,Award Costs,Scholar,PIN037000,4968,
DFID,CSC,19/12/2018,Scholar Stipend,Award Costs,Scholar,PIN037001,3252,
DFID,CSC,19/12/2018,Scholar Stipend,Award Costs,Scholar,PIN037002,1920.3,
DFID,CSC,19/12/2018,Scholar Stipend,Award Costs,Scholar,PIN037003,1440.38,
DFID,CSC,19/12/2018,Scholar Stipend,Award Costs,Scholar,PIN037004,3252,
DFID,CSC,19/12/2018,Scholar Stipend,Award Costs,Scholar,PIN037005,3252,
DFID,CSC,19/12/2018,Scholar Stipend,Award Costs,Scholar,PIN037006,3252,
DFID,CSC,19/12/2018,Scholar Stipend,Award Costs,Scholar,PIN037007,3252,
DFID,CSC,19/12/2018,Scholar Stipend,Award Costs,Scholar,PIN037008,3252,
DFID,CSC,19/12/2018,Scholar Stipend,Award Costs,Scholar,PIN037009,3252,
DFID,CSC,19/12/2018,Scholar Stipend,Award Costs,Scholar,PIN037010,3252,
DFID,CSC,19/12/2018,Scholar Stipend,Award Costs,Scholar,PIN037011,3252,
DFID,CSC,19/12/2018,Scholar Stipend,Award Costs,Scholar,PIN037012,3252,
DFID,CSC,19/12/2018,Scholar Stipend,Award Costs,Scholar,PIN037013,1626,
DFID,CSC,19/12/2018,Scholar Stipend,Award Costs,Scholar,PIN037014,3252,
DFID,CSC,19/12/2018,Scholar Stipend,Award Costs,Scholar,PIN037015,3990,
DFID,CSC,19/12/2018,Scholar Stipend,Award Costs,Scholar,PIN037016,3252,
DFID,CSC,19/12/2018,Scholar Stipend,Award Costs,Scholar,PIN037017,3990,
DFID,CSC,19/12/2018,Scholar Stipend,Award Costs,Scholar,PIN037018,3252,
BEIS,CSC,19/12/2018,Scholar Stipend,Award Costs,Scholar,PIN037019,4968,
BEIS,CSC,19/12/2018,Scholar Stipend,Award Costs,Scholar,PIN037020,4968,
BEIS,CSC,19/12/2018,Scholar Stipend,Award Costs,Scholar,PIN037021,4968,
DFID,CSC,19/12/2018,Scholar Stipend,Award Costs,Scholar,PIN037022,3252,
DFID,CSC,19/12/2018,Scholar Stipend,Award Costs,Scholar,PIN037023,3252,
DFID,CSC,19/12/2018,Scholar Stipend,Award Costs,Scholar,PIN037024,3252,
DFID,CSC,19/12/2018,Scholar Stipend,Award Costs,Scholar,PIN037025,3252,
DFID,CSC,19/12/2018,Scholar Stipend,Award Costs,Scholar,PIN037026,3252,
DFID,CSC,19/12/2018,Scholar Stipend,Award Costs,Scholar,PIN037027,3990,
DFID,CSC,19/12/2018,Scholar Stipend,Award Costs,Scholar,PIN037028,3252,
DFID,CSC,19/12/2018,Scholar Stipend,Award Costs,Scholar,PIN037029,3252,
DFID,CSC,19/12/2018,Scholar Stipend,Award Costs,Scholar,PIN037030,3252,
BEIS,CSC,19/12/2018,Scholar Stipend,Award Costs,Scholar,PIN037031,4968,
DFID,CSC,19/12/2018,Scholar Stipend,Award Costs,Scholar,PIN037032,3252,
BEIS,CSC,19/12/2018,Scholar Stipend,Award Costs,Scholar,PIN037033,4968,
DFID,CSC,19/12/2018,Scholar Stipend,Award Costs,Scholar,PIN037034,3252,
DFID,CSC,19/12/2018,Scholar Stipend,Award Costs,Scholar,PIN037035,3252,
DFID,CSC,19/12/2018,Scholar Stipend,Award Costs,Scholar,PIN037036,3252,
DFID,CSC,19/12/2018,Scholar Stipend,Award Costs,Scholar,PIN037037,1211.58,
DFID,CSC,19/12/2018,Scholar Stipend,Award Costs,Scholar,PIN037038,1565.12,
DFID,CSC,19/12/2018,Scholar Stipend,Award Costs,Scholar,PIN037039,3252,
DFID,CSC,19/12/2018,Scholar Stipend,Award Costs,Scholar,PIN037040,3990,
DFID,CSC,19/12/2018,Scholar Stipend,Award Costs,Scholar,PIN037041,3252,
DFID,CSC,19/12/2018,Scholar Stipend,Award Costs,Scholar,PIN037042,3252,
DFID,CSC,19/12/2018,Scholar Stipend,Award Costs,Scholar,PIN037043,3252,
DFID,CSC,19/12/2018,Scholar Stipend,Award Costs,Scholar,PIN037044,3252,
DFID,CSC,19/12/2018,Scholar Stipend,Award Costs,Scholar,PIN037045,3252,
DFID,CSC,19/12/2018,Scholar Stipend,Award Costs,Scholar,PIN037046,3252,
DFID,CSC,19/12/2018,Scholar Stipend,Award Costs,Scholar,PIN037047,3252,
DFID,CSC,19/12/2018,Scholar Stipend,Award Costs,Scholar,PIN037048,3252,
DFID,CSC,19/12/2018,Scholar Stipend,Award Costs,Scholar,PIN037049,3252,
DFID,CSC,19/12/2018,Scholar Stipend,Award Costs,Scholar,PIN037050,3252,
DFID,CSC,19/12/2018,Scholar Stipend,Award Costs,Scholar,PIN037051,3252,
DFID,CSC,19/12/2018,Scholar Stipend,Award Costs,Scholar,PIN037052,3252,
DFID,CSC,19/12/2018,Scholar Stipend,Award Costs,Scholar,PIN037053,3252,
DFID,CSC,19/12/2018,Scholar Stipend,Award Costs,Scholar,PIN037054,3252,
DFID,CSC,19/12/2018,Scholar Stipend,Award Costs,Scholar,PIN037055,3990,
DFID,CSC,19/12/2018,Scholar Stipend,Award Costs,Scholar,PIN037056,1084,
DFID,CSC,19/12/2018,Scholar Stipend,Award Costs,Scholar,PIN037057,1626,
DFID,CSC,19/12/2018,Scholar Stipend,Award Costs,Scholar,PIN037058,3252,
DFID,CSC,19/12/2018,Scholar Stipend,Award Costs,Scholar,PIN037059,2168,
DFID,CSC,19/12/2018,Scholar Stipend,Award Costs,Scholar,PIN037060,1626,
DFID,CSC,19/12/2018,Scholar Stipend,Award Costs,Scholar,PIN037061,3252,
DFID,CSC,19/12/2018,Scholar Stipend,Award Costs,Scholar,PIN037062,3252,
DFID,CSC,19/12/2018,Scholar Stipend,Award Costs,Scholar,PIN037063,3252,
DFID,CSC,19/12/2018,Scholar Stipend,Award Costs,Scholar,PIN037064,3252,
DFID,CSC,19/12/2018,Scholar Stipend,Award Costs,Scholar,PIN037065,3252,
DFID,CSC,19/12/2018,Scholar Stipend,Award Costs,Scholar,PIN037066,3252,
DFID,CSC,19/12/2018,Scholar Stipend,Award Costs,Scholar,PIN037067,3990,
DFID,CSC,19/12/2018,Scholar Stipend,Award Costs,Scholar,PIN037068,3252,
DFID,CSC,19/12/2018,Scholar Stipend,Award Costs,Scholar,PIN037069,3990,
DFID,CSC,19/12/2018,Scholar Stipend,Award Costs,Scholar,PIN037070,1582.94,
DFID,CSC,19/12/2018,Scholar Stipend,Award Costs,Scholar,PIN037071,1190.92,
DFID,CSC,19/12/2018,Scholar Stipend,Award Costs,Scholar,PIN037072,1626,
DFID,CSC,19/12/2018,Scholar Stipend,Award Costs,Scholar,PIN037073,1084,
DFID,CSC,19/12/2018,Scholar Stipend,Award Costs,Scholar,PIN037074,1084,
DFID,CSC,19/12/2018,Scholar Stipend,Award Costs,Scholar,PIN037075,3252,
DFID,CSC,19/12/2018,Scholar Stipend,Award Costs,Scholar,PIN037076,3252,
DFID,CSC,19/12/2018,Scholar Stipend,Award Costs,Scholar,PIN037077,3252,
DFID,CSC,19/12/2018,Scholar Stipend,Award Costs,Scholar,PIN037078,3252,
DFID,CSC,19/12/2018,Scholar Stipend,Award Costs,Scholar,PIN037079,3252,
DFID,CSC,19/12/2018,Scholar Stipend,Award Costs,Scholar,PIN037080,3252,
DFID,CSC,19/12/2018,Scholar Stipend,Award Costs,Scholar,PIN037081,3252,
DFID,CSC,19/12/2018,Scholar Stipend,Award Costs,Scholar,PIN037082,3252,
DFID,CSC,19/12/2018,Scholar Stipend,Award Costs,Scholar,PIN037083,3252,
DFID,CSC,19/12/2018,Scholar Stipend,Award Costs,Scholar,PIN037084,3252,
BEIS,CSC,19/12/2018,Scholar Stipend,Award Costs,Scholar,PIN037085,6165,
DFID,CSC,19/12/2018,Scholar Stipend,Award Costs,Scholar,PIN037086,1084,
DFID,CSC,19/12/2018,Scholar Stipend,Award Costs,Scholar,PIN037087,1582.94,
DFID,CSC,19/12/2018,Scholar Stipend,Award Costs,Scholar,PIN037088,3252,
DFID,CSC,19/12/2018,Scholar Stipend,Award Costs,Scholar,PIN037089,3216.39,
DFID,CSC,19/12/2018,Scholar Stipend,Award Costs,Scholar,PIN037090,3252,
DFID,CSC,19/12/2018,Scholar Stipend,Award Costs,Scholar,PIN037091,1084,
DFID,CSC,19/12/2018,Scholar Stipend,Award Costs,Scholar,PIN037092,1565.12,
DFID,CSC,19/12/2018,Scholar Stipend,Award Costs,Scholar,PIN037093,1084,
DFID,CSC,19/12/2018,Scholar Stipend,Award Costs,Scholar,PIN037094,3252,
DFID,CSC,19/12/2018,Scholar Stipend,Award Costs,Scholar,PIN037095,3252,
DFID,CSC,19/12/2018,Scholar Stipend,Award Costs,Scholar,PIN037096,3252,
DFID,CSC,19/12/2018,Scholar Stipend,Award Costs,Scholar,PIN037097,3990,
DFID,CSC,19/12/2018,Scholar Stipend,Award Costs,Scholar,PIN037098,3252,
DFID,CSC,19/12/2018,Scholar Stipend,Award Costs,Scholar,PIN037099,3990,
DFID,CSC,19/12/2018,Scholar Stipend,Award Costs,Scholar,PIN037100,3252,
DFID,CSC,19/12/2018,Scholar Stipend,Award Costs,Scholar,PIN037101,3990,
DFID,CSC,19/12/2018,Scholar Stipend,Award Costs,Scholar,PIN037102,3252,
DFID,CSC,19/12/2018,Scholar Stipend,Award Costs,Scholar,PIN037103,3990,
DFID,CSC,19/12/2018,Scholar Stipend,Award Costs,Scholar,PIN037104,3252,
DFID,CSC,19/12/2018,Scholar Stipend,Award Costs,Scholar,PIN037105,3252,
DFID,CSC,19/12/2018,Scholar Stipend,Award Costs,Scholar,PIN037106,3252,
DFID,CSC,19/12/2018,Scholar Stipend,Award Costs,Scholar,PIN037107,3252,
DFID,CSC,19/12/2018,Scholar Stipend,Award Costs,Scholar,PIN037108,3252,
DFID,CSC,24/12/2018,Scholar Stipend,Award Costs,Scholar,PIN037109,3252,
DFID,CSC,19/12/2018,Scholar Stipend,Award Costs,Scholar,PIN037110,3990,
DFID,CSC,19/12/2018,Scholar Stipend,Award Costs,Scholar,PIN037111,3252,
DFID,CSC,19/12/2018,Scholar Stipend,Award Costs,Scholar,PIN037112,3990,
DFID,CSC,19/12/2018,Scholar Stipend,Award Costs,Scholar,PIN037113,3252,
DFID,CSC,19/12/2018,Scholar Stipend,Award Costs,Scholar,PIN037114,3252,
DFID,CSC,19/12/2018,Scholar Stipend,Award Costs,Scholar,PIN037115,1626,
DFID,CSC,19/12/2018,Scholar Stipend,Award Costs,Scholar,PIN037116,1565.12,
DFID,CSC,19/12/2018,Scholar Stipend,Award Costs,Scholar,PIN037117,1626,
DFID,CSC,19/12/2018,Scholar Stipend,Award Costs,Scholar,PIN037118,1084,
DFID,CSC,19/12/2018,Scholar Stipend,Award Costs,Scholar,PIN037119,1626,
DFID,CSC,19/12/2018,Scholar Stipend,Award Costs,Scholar,PIN037120,1084,
DFID,CSC,19/12/2018,Scholar Stipend,Award Costs,Scholar,PIN037121,3252,
DFID,CSC,19/12/2018,Scholar Stipend,Award Costs,Scholar,PIN037122,3990,
DFID,CSC,19/12/2018,Scholar Stipend,Award Costs,Scholar,PIN037123,3252,
DFID,CSC,19/12/2018,Scholar Stipend,Award Costs,Scholar,PIN037124,3252,
DFID,CSC,19/12/2018,Scholar Stipend,Award Costs,Scholar,PIN037125,3990,
DFID,CSC,19/12/2018,Scholar Stipend,Award Costs,Scholar,PIN037126,3252,
DFID,CSC,19/12/2018,Scholar Stipend,Award Costs,Scholar,PIN037127,3252,
DFID,CSC,19/12/2018,Scholar Stipend,Award Costs,Scholar,PIN037128,3252,
DFID,CSC,19/12/2018,Scholar Stipend,Award Costs,Scholar,PIN037129,3252,
DFID,CSC,19/12/2018,Scholar Stipend,Award Costs,Scholar,PIN037130,3990,
DFID,CSC,19/12/2018,Scholar Stipend,Award Costs,Scholar,PIN037131,3252,
DFID,CSC,19/12/2018,Scholar Stipend,Award Costs,Scholar,PIN037132,3252,
DFID,CSC,19/12/2018,Scholar Stipend,Award Costs,Scholar,PIN037133,3252,
DFID,CSC,19/12/2018,Scholar Stipend,Award Costs,Scholar,PIN037134,3252,
DFID,CSC,19/12/2018,Scholar Stipend,Award Costs,Scholar,PIN037135,3028.67,
DFID,CSC,19/12/2018,Scholar Stipend,Award Costs,Scholar,PIN037136,3252,
DFID,CSC,19/12/2018,Scholar Stipend,Award Costs,Scholar,PIN037137,3252,
DFID,CSC,19/12/2018,Scholar Stipend,Award Costs,Scholar,PIN037138,3990,
DFID,CSC,19/12/2018,Scholar Stipend,Award Costs,Scholar,PIN037139,3990,
DFID,CSC,19/12/2018,Scholar Stipend,Award Costs,Scholar,PIN037140,3990,
DFID,CSC,19/12/2018,Scholar Stipend,Award Costs,Scholar,PIN037141,3252,
DFID,CSC,19/12/2018,Scholar Stipend,Award Costs,Scholar,PIN037142,3252,
DFID,CSC,19/12/2018,Scholar Stipend,Award Costs,Scholar,PIN037143,3990,
DFID,CSC,19/12/2018,Scholar Stipend,Award Costs,Scholar,PIN037144,3990,
DFID,CSC,19/12/2018,Scholar Stipend,Award Costs,Scholar,PIN037145,3990,
DFID,CSC,19/12/2018,Scholar Stipend,Award Costs,Scholar,PIN037146,3990,
DFID,CSC,19/12/2018,Scholar Stipend,Award Costs,Scholar,PIN037147,3990,
DFID,CSC,19/12/2018,Scholar Stipend,Award Costs,Scholar,PIN037148,3990,
DFID,CSC,19/12/2018,Scholar Stipend,Award Costs,Scholar,PIN037149,3252,
DFID,CSC,19/12/2018,Scholar Stipend,Award Costs,Scholar,PIN037150,3252,
DFID,CSC,19/12/2018,Scholar Stipend,Award Costs,Scholar,PIN037151,3252,
DFID,CSC,19/12/2018,Scholar Stipend,Award Costs,Scholar,PIN037152,3252,
DFID,CSC,19/12/2018,Scholar Stipend,Award Costs,Scholar,PIN037153,3252,
DFID,CSC,19/12/2018,Scholar Stipend,Award Costs,Scholar,PIN037154,3252,
DFID,CSC,19/12/2018,Scholar Stipend,Award Costs,Scholar,PIN037155,3252,
BEIS,CSC,19/12/2018,Scholar Stipend,Award Costs,Scholar,PIN037156,4968,
DFID,CSC,19/12/2018,Scholar Stipend,Award Costs,Scholar,PIN037157,1440.38,
DFID,CSC,19/12/2018,Scholar Stipend,Award Costs,Scholar,PIN037158,2168,
DFID,CSC,19/12/2018,Scholar Stipend,Award Costs,Scholar,PIN037159,3252,
DFID,CSC,19/12/2018,Scholar Stipend,Award Costs,Scholar,PIN037160,3990,
DFID,CSC,19/12/2018,Scholar Stipend,Award Costs,Scholar,PIN037161,3252,
DFID,CSC,19/12/2018,Scholar Stipend,Award Costs,Scholar,PIN037162,3252,
DFID,CSC,19/12/2018,Scholar Stipend,Award Costs,Scholar,PIN037163,3252,
DFID,CSC,19/12/2018,Scholar Stipend,Award Costs,Scholar,PIN037164,1626,
DFID,CSC,19/12/2018,Scholar Stipend,Award Costs,Scholar,PIN037165,1626,
DFID,CSC,19/12/2018,Scholar Stipend,Award Costs,Scholar,PIN037166,3252,
DFID,CSC,19/12/2018,Scholar Stipend,Award Costs,Scholar,PIN037167,3252,
DFID,CSC,19/12/2018,Scholar Stipend,Award Costs,Scholar,PIN037168,3252,
DFID,CSC,19/12/2018,Scholar Stipend,Award Costs,Scholar,PIN037169,3252,
DFID,CSC,19/12/2018,Scholar Stipend,Award Costs,Scholar,PIN037170,3252,
DFID,CSC,19/12/2018,Scholar Stipend,Award Costs,Scholar,PIN037171,3252,
DFID,CSC,19/12/2018,Scholar Stipend,Award Costs,Scholar,PIN037172,3990,
DFID,CSC,19/12/2018,Scholar Stipend,Award Costs,Scholar,PIN037173,3252,
DFID,CSC,19/12/2018,Scholar Stipend,Award Costs,Scholar,PIN037174,2168,
DFID,CSC,19/12/2018,Scholar Stipend,Award Costs,Scholar,PIN037175,3252,
DFID,CSC,19/12/2018,Scholar Stipend,Award Costs,Scholar,PIN037176,3252,
DFID,CSC,19/12/2018,Scholar Stipend,Award Costs,Scholar,PIN037177,3252,
DFID,CSC,19/12/2018,Scholar Stipend,Award Costs,Scholar,PIN037178,3252,
DFID,CSC,19/12/2018,Scholar Stipend,Award Costs,Scholar,PIN037179,3252,
DFID,CSC,19/12/2018,Scholar Stipend,Award Costs,Scholar,PIN037180,3252,
DFID,CSC,19/12/2018,Scholar Stipend,Award Costs,Scholar,PIN037181,3252,
DFID,CSC,19/12/2018,Scholar Stipend,Award Costs,Scholar,PIN037182,3252,
DFID,CSC,19/12/2018,Scholar Stipend,Award Costs,Scholar,PIN037183,3252,
DFID,CSC,19/12/2018,Scholar Stipend,Award Costs,Scholar,PIN037184,3252,
DFID,CSC,19/12/2018,Scholar Stipend,Award Costs,Scholar,PIN037185,3252,
DFID,CSC,19/12/2018,Scholar Stipend,Award Costs,Scholar,PIN037186,3252,
DFID,CSC,19/12/2018,Scholar Stipend,Award Costs,Scholar,PIN037187,3252,
DFID,CSC,19/12/2018,Scholar Stipend,Award Costs,Scholar,PIN037188,3252,
DFID,CSC,19/12/2018,Advances Repayments,Award Costs,Scholar,PIN037190,-1275.03,
DFID,CSC,19/12/2018,Advances Repayments,Award Costs,Scholar,PIN037191,-1226.46,
DFID,CSC,19/12/2018,Advances Repayments,Award Costs,Scholar,PIN037192,-641.05,
DFID,CSC,19/12/2018,Advances Repayments,Award Costs,Scholar,PIN037193,-605.44,
DFID,CSC,19/12/2018,Advances Repayments,Award Costs,Scholar,PIN037194,-618,
BEIS,CSC,19/12/2018,Advances Repayments,Award Costs,Scholar,PIN037195,-979.32,
DFID,CSC,19/12/2018,Advances Repayments,Award Costs,Scholar,PIN037196,-1032.81,
DFID,CSC,19/12/2018,Advances Repayments,Award Costs,Scholar,PIN037197,-1104.03,
DFID,CSC,19/12/2018,Advances Repayments,Award Costs,Scholar,PIN037199,-569.82,
DFID,CSC,19/12/2018,Scholar Allowances,Award Costs,Scholar,PIN037204,699,
DFID,CSC,19/12/2018,Scholar Allowances,Award Costs,Scholar,PIN037205,699,
DFID,CSC,19/12/2018,Scholar Allowances,Award Costs,Scholar,PIN037206,1041,
DFID,CSC,19/12/2018,Scholar Allowances,Award Costs,Scholar,PIN037208,699,
DFID,CSC,19/12/2018,Scholar Allowances,Award Costs,Scholar,PIN037209,699,
DFID,CSC,19/12/2018,Scholar Allowances,Award Costs,Scholar,PIN037210,699,
DFID,CSC,19/12/2018,Scholar Allowances,Award Costs,Scholar,PIN037211,699,
DFID,CSC,19/12/2018,Scholar Allowances,Award Costs,Scholar,PIN037212,699,
DFID,CSC,19/12/2018,Scholar Allowances,Award Costs,Scholar,PIN037213,1041,
DFID,CSC,19/12/2018,Scholar Allowances,Award Costs,Scholar,PIN037214,699,
DFID,CSC,19/12/2018,Scholar Allowances,Award Costs,Scholar,PIN037215,699,
DFID,CSC,19/12/2018,Scholar Allowances,Award Costs,Scholar,PIN037216,699,
DFID,CSC,19/12/2018,Scholar Allowances,Award Costs,Scholar,PIN037217,699,
DFID,CSC,19/12/2018,Scholar Allowances,Award Costs,Scholar,PIN037218,699,
DFID,CSC,19/12/2018,Scholar Allowances,Award Costs,Scholar,PIN037219,699,
DFID,CSC,19/12/2018,Scholar Allowances,Award Costs,Scholar,PIN037220,699,
DFID,CSC,19/12/2018,Scholar Allowances,Award Costs,Scholar,PIN037221,1041,
DFID,CSC,19/12/2018,Scholar Allowances,Award Costs,Scholar,PIN037222,1740,
DFID,CSC,19/12/2018,Scholar Allowances,Award Costs,Scholar,PIN037223,699,
DFID,CSC,19/12/2018,Scholar Allowances,Award Costs,Scholar,PIN037224,1383,
DFID,CSC,19/12/2018,Scholar Allowances,Award Costs,Scholar,PIN037225,1041,
DFID,CSC,19/12/2018,Scholar Allowances,Award Costs,Scholar,PIN037226,699,
DFID,CSC,19/12/2018,Scholar Allowances,Award Costs,Scholar,PIN037227,1024.61,
DFID,CSC,19/12/2018,Scholar Allowances,Award Costs,Scholar,PIN037228,1631,
DFID,CSC,19/12/2018,Scholar Allowances,Award Costs,Scholar,PIN037229,699,
DFID,CSC,19/12/2018,Scholar Allowances,Award Costs,Scholar,PIN037230,699,
DFID,CSC,19/12/2018,Scholar Allowances,Award Costs,Scholar,PIN037231,699,
DFID,CSC,19/12/2018,Scholar Allowances,Award Costs,Scholar,PIN037232,699,
DFID,CSC,19/12/2018,Scholar Allowances,Award Costs,Scholar,PIN037233,1041,
DFID,CSC,19/12/2018,Scholar Allowances,Award Costs,Scholar,PIN037235,1041,
DFID,CSC,19/12/2018,Scholar Allowances,Award Costs,Scholar,PIN037236,699,
DFID,CSC,19/12/2018,Scholar Allowances,Award Costs,Scholar,PIN037237,699,
DFID,CSC,19/12/2018,Scholar Allowances,Award Costs,Scholar,PIN037238,1383,
DFID,CSC,19/12/2018,Scholar Allowances,Award Costs,Scholar,PIN037239,1041,
DFID,CSC,19/12/2018,Scholar Allowances,Award Costs,Scholar,PIN037240,1398,
DFID,CSC,19/12/2018,Scholar Allowances,Award Costs,Scholar,PIN037241,1383,
DFID,CSC,19/12/2018,Scholar Allowances,Award Costs,Scholar,PIN037242,1383,
DFID,CSC,19/12/2018,Scholar Allowances,Award Costs,Scholar,PIN037243,1398,
DFID,CSC,19/12/2018,Scholar Allowances,Award Costs,Scholar,PIN037244,930,
DFID,CSC,19/12/2018,Scholar Allowances,Award Costs,Scholar,PIN037246,1041,
DFID,CSC,19/12/2018,Scholar Allowances,Award Costs,Scholar,PIN037247,699,
DFID,CSC,19/12/2018,Scholar Allowances,Award Costs,Scholar,PIN037248,1041,
DFID,CSC,19/12/2018,Scholar Allowances,Award Costs,Scholar,PIN037249,1467.8,
DFID,CSC,19/12/2018,Scholar Allowances,Award Costs,Scholar,PIN037250,699,
DFID,CSC,19/12/2018,Scholar Allowances,Award Costs,Scholar,PIN037251,699,
DFID,CSC,19/12/2018,Scholar Allowances,Award Costs,Scholar,PIN037252,1383,
DFID,CSC,19/12/2018,Scholar Allowances,Award Costs,Scholar,PIN037253,699,
DFID,CSC,19/12/2018,Scholar Allowances,Award Costs,Scholar,PIN037254,3712.77,
DFID,CSC,19/12/2018,Scholar Allowances,Award Costs,Scholar,PIN037255,721.96,
DFID,CSC,19/12/2018,Scholar Allowances,Award Costs,Scholar,PIN037256,1383,
DFID,CSC,19/12/2018,Scholar Allowances,Award Costs,Scholar,PIN037257,1383,
DFID,CSC,19/12/2018,Scholar Allowances,Award Costs,Scholar,PIN037258,1041,
DFID,CSC,19/12/2018,Scholar Allowances,Award Costs,Scholar,PIN037259,699,
DFID,CSC,19/12/2018,Scholar Allowances,Award Costs,Scholar,PIN037260,1041,
DFID,CSC,19/12/2018,Scholar Allowances,Award Costs,Scholar,PIN037261,1041,
DFID,CSC,19/12/2018,Scholar Allowances,Award Costs,Scholar,PIN037262,1041,
DFID,CSC,19/12/2018,Scholar Allowances,Award Costs,Scholar,PIN037263,1398,
DFID,CSC,19/12/2018,Scholar Allowances,Award Costs,Scholar,PIN037264,699,
DFID,CSC,19/12/2018,Scholar Allowances,Award Costs,Scholar,PIN037265,506.44,
DFID,CSC,19/12/2018,Scholar Allowances,Award Costs,Scholar,PIN037266,699,
DFID,CSC,19/12/2018,Scholar Allowances,Award Costs,Scholar,PIN037267,699,
DFID,CSC,19/12/2018,Scholar Allowances,Award Costs,Scholar,PIN037269,1041,
DFID,CSC,19/12/2018,Scholar Allowances,Award Costs,Scholar,PIN037270,1077.44,
DFID,CSC,19/12/2018,Scholar Allowances,Award Costs,Scholar,PIN037271,1041,
DFID,CSC,19/12/2018,Scholar Allowances,Award Costs,Scholar,PIN037272,1041,
DFID,CSC,19/12/2018,Scholar Allowances,Award Costs,Scholar,PIN037273,1041,
DFID,CSC,19/12/2018,Scholar Allowances,Award Costs,Scholar,PIN037274,1041,
DFID,CSC,19/12/2018,Scholar Allowances,Award Costs,Scholar,PIN037275,1041,
DFID,CSC,19/12/2018,Scholar Allowances,Award Costs,Scholar,PIN037276,1383,
DFID,CSC,19/12/2018,Scholar Allowances,Award Costs,Scholar,PIN037277,699,
DFID,CSC,19/12/2018,Scholar Allowances,Award Costs,Scholar,PIN037278,699,
DFID,CSC,19/12/2018,Scholar Allowances,Award Costs,Scholar,PIN037279,699,
DFID,CSC,19/12/2018,Scholar Allowances,Award Costs,Scholar,PIN037280,699,
DFID,CSC,19/12/2018,Scholar Allowances,Award Costs,Scholar,PIN037281,699,
DFID,CSC,19/12/2018,Scholar Allowances,Award Costs,Scholar,PIN037283,699,
DFID,CSC,19/12/2018,Scholar Allowances,Award Costs,Scholar,PIN037284,699,
DFID,CSC,19/12/2018,Scholar Allowances,Award Costs,Scholar,PIN037285,699,
DFID,CSC,19/12/2018,Scholar Allowances,Award Costs,Scholar,PIN037286,699,
DFID,CSC,19/12/2018,Scholar Allowances,Award Costs,Scholar,PIN037287,699,
DFID,CSC,19/12/2018,Scholar Allowances,Award Costs,Scholar,PIN037288,699,
DFID,CSC,19/12/2018,Scholar Allowances,Award Costs,Scholar,PIN037289,699,
DFID,CSC,19/12/2018,Scholar Allowances,Award Costs,Scholar,PIN037290,699,
DFID,CSC,19/12/2018,Scholar Allowances,Award Costs,Scholar,PIN037291,699,
DFID,CSC,19/12/2018,Scholar Allowances,Award Costs,Scholar,PIN037292,699,
DFID,CSC,19/12/2018,Scholar Allowances,Award Costs,Scholar,PIN037293,699,
DFID,CSC,19/12/2018,Scholar Allowances,Award Costs,Scholar,PIN037294,699,
DFID,CSC,19/12/2018,Scholar Allowances,Award Costs,Scholar,PIN037295,699,
DFID,CSC,19/12/2018,Scholar Allowances,Award Costs,Scholar,PIN037296,699,
DFID,CSC,19/12/2018,Scholar Allowances,Award Costs,Scholar,PIN037297,699,
DFID,CSC,19/12/2018,Scholar Allowances,Award Costs,Scholar,PIN037298,699,
DFID,CSC,19/12/2018,Scholar Allowances,Award Costs,Scholar,PIN037299,699,
DFID,CSC,19/12/2018,Scholar Allowances,Award Costs,Scholar,PIN037301,699,
DFID,CSC,19/12/2018,Scholar Allowances,Award Costs,Scholar,PIN037302,1069.79,
DFID,CSC,19/12/2018,Scholar Allowances,Award Costs,Scholar,PIN037303,699,
DFID,CSC,19/12/2018,Scholar Allowances,Award Costs,Scholar,PIN037304,699,
DFID,CSC,19/12/2018,Scholar Allowances,Award Costs,Scholar,PIN037305,699,
DFID,CSC,19/12/2018,Scholar Allowances,Award Costs,Scholar,PIN037306,699,
DFID,CSC,19/12/2018,Scholar Allowances,Award Costs,Scholar,PIN037307,1165,
DFID,CSC,19/12/2018,Scholar Allowances,Award Costs,Scholar,PIN037308,688,
DFID,CSC,19/12/2018,Scholar Allowances,Award Costs,Scholar,PIN037309,699,
DFID,CSC,19/12/2018,Scholar Allowances,Award Costs,Scholar,PIN037310,699,
DFID,CSC,19/12/2018,Scholar Allowances,Award Costs,Scholar,PIN037311,699,
DFID,CSC,19/12/2018,Scholar Allowances,Award Costs,Scholar,PIN037312,699,
DFID,CSC,19/12/2018,Scholar Allowances,Award Costs,Scholar,PIN037313,699,
DFID,CSC,19/12/2018,Scholar Allowances,Award Costs,Scholar,PIN037315,699,
DFID,CSC,19/12/2018,Scholar Allowances,Award Costs,Scholar,PIN037316,699,
DFID,CSC,19/12/2018,Scholar Allowances,Award Costs,Scholar,PIN037317,699,
DFID,CSC,19/12/2018,Scholar Allowances,Award Costs,Scholar,PIN037318,699,
DFID,CSC,19/12/2018,Scholar Allowances,Award Costs,Scholar,PIN037319,699,
DFID,CSC,19/12/2018,Scholar Allowances,Award Costs,Scholar,PIN037320,699,
DFID,CSC,19/12/2018,Scholar Allowances,Award Costs,Scholar,PIN037321,699,
DFID,CSC,19/12/2018,Scholar Allowances,Award Costs,Scholar,PIN037323,699,
DFID,CSC,19/12/2018,Scholar Allowances,Award Costs,Scholar,PIN037324,699,
DFID,CSC,19/12/2018,Scholar Allowances,Award Costs,Scholar,PIN037325,699,
DFID,CSC,19/12/2018,Scholar Allowances,Award Costs,Scholar,PIN037326,699,
DFID,CSC,19/12/2018,Scholar Allowances,Award Costs,Scholar,PIN037327,985.58,
DFID,CSC,19/12/2018,Scholar Allowances,Award Costs,Scholar,PIN037328,699,
DFID,CSC,19/12/2018,Scholar Allowances,Award Costs,Scholar,PIN037329,699,
DFID,CSC,19/12/2018,Scholar Allowances,Award Costs,Scholar,PIN037330,1736.35,
DFID,CSC,19/12/2018,Scholar Allowances,Award Costs,Scholar,PIN037331,699,
DFID,CSC,19/12/2018,Scholar Allowances,Award Costs,Scholar,PIN037332,699,
DFID,CSC,19/12/2018,Scholar Allowances,Award Costs,Scholar,PIN037333,721.96,
DFID,CSC,19/12/2018,Scholar Allowances,Award Costs,Scholar,PIN037334,699,
DFID,CSC,19/12/2018,Scholar Allowances,Award Costs,Scholar,PIN037335,699,
DFID,CSC,19/12/2018,Scholar Allowances,Award Costs,Scholar,PIN037336,699,
DFID,CSC,19/12/2018,Scholar Allowances,Award Costs,Scholar,PIN037337,699,
DFID,CSC,19/12/2018,Scholar Allowances,Award Costs,Scholar,PIN037338,699,
DFID,CSC,19/12/2018,Scholar Allowances,Award Costs,Scholar,PIN037339,699,
DFID,CSC,19/12/2018,Scholar Allowances,Award Costs,Scholar,PIN037340,699,
DFID,CSC,19/12/2018,Scholar Allowances,Award Costs,Scholar,PIN037341,699,
DFID,CSC,19/12/2018,Scholar Allowances,Award Costs,Scholar,PIN037342,699,
DFID,CSC,19/12/2018,Scholar Allowances,Award Costs,Scholar,PIN037344,699,
DFID,CSC,19/12/2018,Scholar Allowances,Award Costs,Scholar,PIN037345,699,
DFID,CSC,19/12/2018,Scholar Allowances,Award Costs,Scholar,PIN037346,699,
DFID,CSC,19/12/2018,Scholar Allowances,Award Costs,Scholar,PIN037347,1077.44,
DFID,CSC,19/12/2018,Scholar Allowances,Award Costs,Scholar,PIN037348,699,
DFID,CSC,19/12/2018,Scholar Allowances,Award Costs,Scholar,PIN037349,699,
DFID,CSC,19/12/2018,Scholar Allowances,Award Costs,Scholar,PIN037350,699,
DFID,CSC,19/12/2018,Scholar Allowances,Award Costs,Scholar,PIN037351,699,
DFID,CSC,19/12/2018,Scholar Allowances,Award Costs,Scholar,PIN037352,699,
DFID,CSC,19/12/2018,Scholar Allowances,Award Costs,Scholar,PIN037353,699,
DFID,CSC,19/12/2018,Scholar Allowances,Award Costs,Scholar,PIN037354,699,
DFID,CSC,19/12/2018,Scholar Allowances,Award Costs,Scholar,PIN037355,699,
DFID,CSC,19/12/2018,Scholar Allowances,Award Costs,Scholar,PIN037356,699,
DFID,CSC,19/12/2018,Scholar Allowances,Award Costs,Scholar,PIN037357,699,
DFID,CSC,19/12/2018,Scholar Stipend,Award Costs,Scholar,PIN037497,3490.24,
DFID,CSC,19/12/2018,Scholar Stipend,Award Costs,Scholar,PIN037498,534.2,
DFID,CSC,19/12/2018,Scholar Stipend,Award Costs,Scholar,PIN037501,1938.74,
DFID,CSC,19/12/2018,Scholar Stipend,Award Costs,Scholar,PIN037503,2168,
DFID,CSC,19/12/2018,Scholar Stipend,Award Costs,Scholar,PIN037504,532.5,
DFID,CSC,19/12/2018,Scholar Stipend,Award Costs,Scholar,PIN037506,1084,
BEIS,CSC,19/12/2018,Scholar Stipend,Award Costs,Scholar,PIN037519,4673.1,
BEIS,CSC,19/12/2018,Scholar Stipend,Award Costs,Scholar,PIN037520,4727.54,
DFID,CSC,19/12/2018,Scholar Stipend,Award Costs,Scholar,PIN037521,3252,
DFID,CSC,19/12/2018,Scholar Stipend,Award Costs,Scholar,PIN037522,3252,
DFID,CSC,19/12/2018,Scholar Stipend,Award Costs,Scholar,PIN037524,542,
BEIS,CSC,19/12/2018,Scholar Stipend,Award Costs,Scholar,PIN037525,4455.32,
BEIS,CSC,19/12/2018,Scholar Stipend,Award Costs,Scholar,PIN037526,1088.88,
BEIS,CSC,19/12/2018,Scholar Stipend,Award Costs,Scholar,PIN037527,2689.72,
DFID,CSC,21/12/2018,Tuition Fee,Award Costs,University College London,PIN037531,35030.14,Tuition fees for 14 scholars
DFID,CSC,21/12/2018,Award Support Costs,Award Costs,University of the West of England Bristol,PIN037532,3000,
DFID,CSC,21/12/2018,Award Support Costs,Award Costs,Cardiff University,PIN037533,5000,
DFID,CSC,21/12/2018,Award Support Costs,Award Costs,University of Liverpool,PIN037534,750,
DFID,CSC,21/12/2018,Award Support Costs,Award Costs,University of Southampton,PIN037535,5000,
DFID,CSC,21/12/2018,Award Support Costs,Award Costs,Barts Health NHS Trust,PIN037536,2000,
DFID,CSC,21/12/2018,Award Support Costs,Award Costs,Northumbria University,PIN037537,1500,
DFID,CSC,21/12/2018,Scholar Allowances,Award Costs,University of Oxford,PIN037538,225,
DFID,CSC,21/12/2018,Scholar Allowances,Award Costs,University of Oxford,PIN037538,200,
DFID,CSC,21/12/2018,Scholar Travel,Award Costs,University of Oxford,PIN037538,23,
DFID,CSC,21/12/2018,Scholar Travel,Award Costs,University of Oxford,PIN037538,900,
DFID,CSC,21/12/2018,Scholar Travel,Award Costs,University of Oxford,PIN037538,472.91,
DFID,CSC,21/12/2018,Visa Costs,Award Costs,University of Stirling,PIN037539,279.65,
DFID,CSC,21/12/2018,Scholar Allowances,Award Costs,University of Stirling,PIN037539,225,
DFID,CSC,21/12/2018,Scholar Allowances,Award Costs,University of Stirling,PIN037539,200,
DFID,CSC,21/12/2018,Scholar Travel,Award Costs,University of Stirling,PIN037539,621.15,
DFID,CSC,21/12/2018,Visa Costs,Award Costs,University of Stirling,PIN037540,101.86,
DFID,CSC,21/12/2018,Scholar Allowances,Award Costs,University of Stirling,PIN037540,225,
DFID,CSC,21/12/2018,Scholar Allowances,Award Costs,University of Stirling,PIN037540,200,
DFID,CSC,21/12/2018,Scholar Travel,Award Costs,University of Stirling,PIN037540,900,
DFID,CSC,21/12/2018,Scholar Travel,Award Costs,Coventry University,PIN037541,522.49,
DFID,CSC,21/12/2018,Scholar Travel,Award Costs,Coventry University,PIN037544,697.52,
DFID,CSC,21/12/2018,Scholar Allowances,Award Costs,Leeds Beckett University,PIN037545,177.7,
DFID,CSC,21/12/2018,Scholar Allowances,Award Costs,Leeds Beckett University,PIN037545,225,
DFID,CSC,21/12/2018,Scholar Allowances,Award Costs,Leeds Beckett University,PIN037545,200,
DFID,CSC,21/12/2018,Scholar Travel,Award Costs,Leeds Beckett University,PIN037545,513.68,
DFID,CSC,21/12/2018,Visa Costs,Award Costs,University of Stirling,PIN037546,68.91,
DFID,CSC,21/12/2018,Scholar Allowances,Award Costs,University of Stirling,PIN037546,225,
DFID,CSC,21/12/2018,Scholar Allowances,Award Costs,University of Stirling,PIN037546,200,
DFID,CSC,21/12/2018,Scholar Travel,Award Costs,University of Stirling,PIN037546,718.68,
DFID,CSC,21/12/2018,Tuition Fee,Award Costs,The University of Warwick,PIN037547,19300,
DFID,CSC,21/12/2018,Tuition Fee,Award Costs,Linacre College Oxford,PIN037548,23027,
DFID,CSC,21/12/2018,Tuition Fee,Award Costs,Linacre College Oxford,PIN037549,18000,
DFID,CSC,21/12/2018,Tuition Fee,Award Costs,Linacre College Oxford,PIN037550,-527,
DFID,CSC,21/12/2018,Tuition Fee,Award Costs,University of Dundee,PIN037551,15960,
DFID,CSC,21/12/2018,Scholar Allowances,Award Costs,Leeds Beckett University,PIN037552,225,
DFID,CSC,21/12/2018,Scholar Allowances,Award Costs,Leeds Beckett University,PIN037552,200,
DFID,CSC,21/12/2018,Scholar Travel,Award Costs,Leeds Beckett University,PIN037552,419.29,
DFID,CSC,21/12/2018,Scholar Allowances,Award Costs,University of Teesside,PIN037554,1125,
DFID,CSC,21/12/2018,Scholar Allowances,Award Costs,University of Teesside,PIN037554,1000,
DFID,CSC,21/12/2018,Visa Costs,Award Costs,University of Teesside,PIN037554,348.93,
DFID,CSC,21/12/2018,Scholar Travel,Award Costs,University of Teesside,PIN037554,3125.9,
DFID,CSC,21/12/2018,Scholar Allowances,Award Costs,University of Teesside,PIN037554,500,
DFID,CSC,21/12/2018,Scholar Travel,Award Costs,University of Teesside,PIN037554,500.52,
DFID,CSC,21/12/2018,Visa Costs,Award Costs,The Cambridge Commonwealth Trust,PIN037555,226.32,
DFID,CSC,21/12/2018,Scholar Travel,Award Costs,The Cambridge Commonwealth Trust,PIN037555,137.95,
DFID,CSC,21/12/2018,Scholar Travel,Award Costs,The Cambridge Commonwealth Trust,PIN037555,3269.7,
DFID,CSC,21/12/2018,Scholar Travel,Award Costs,The Cambridge Commonwealth Trust,PIN037556,2299.12,
DFID,CSC,21/12/2018,Scholar Allowances,Award Costs,University of Newcastle upon Tyne,PIN037557,1125,
DFID,CSC,21/12/2018,Scholar Allowances,Award Costs,University of Newcastle upon Tyne,PIN037557,1000,
DFID,CSC,21/12/2018,Scholar Travel,Award Costs,University of Newcastle upon Tyne,PIN037557,3009.9,
DFID,CSC,21/12/2018,Scholar Travel,Award Costs,University of Newcastle upon Tyne,PIN037557,43.5,
DFID,CSC,21/12/2018,Scholar Travel,Award Costs,University of Newcastle upon Tyne,PIN037557,3467.8,
DFID,CSC,21/12/2018,Tuition Fee,Award Costs,The Cambridge Commonwealth Trust,PIN037558,17798.4,
DFID,CSC,21/12/2018,Tuition Fee,Award Costs,The Cambridge Commonwealth Trust,PIN037558,16951.2,
DFID,CSC,21/12/2018,Tuition Fee,Award Costs,The Cambridge Commonwealth Trust,PIN037558,18000,
DFID,CSC,21/12/2018,Tuition Fee,Award Costs,The Cambridge Commonwealth Trust,PIN037558,18000,
DFID,CSC,21/12/2018,Tuition Fee,Award Costs,The Cambridge Commonwealth Trust,PIN037558,17798.4,
DFID,CSC,21/12/2018,Tuition Fee,Award Costs,The Cambridge Commonwealth Trust,PIN037558,18000,
DFID,CSC,21/12/2018,Tuition Fee,Award Costs,The Cambridge Commonwealth Trust,PIN037558,18000,
DFID,CSC,21/12/2018,Tuition Fee,Award Costs,The Cambridge Commonwealth Trust,PIN037558,6370.4,
DFID,CSC,21/12/2018,Tuition Fee,Award Costs,The Cambridge Commonwealth Trust,PIN037558,16951.2,
DFID,CSC,21/12/2018,Tuition Fee,Award Costs,The Cambridge Commonwealth Trust,PIN037558,18000,
DFID,CSC,21/12/2018,Award Support Costs,Award Costs,The Cambridge Commonwealth Trust,PIN037559,13940,
DFID,CSC,21/12/2018,Tuition Fee,Award Costs,Linacre College Oxford,PIN037560,23027,
DFID,CSC,21/12/2018,Tuition Fee,Award Costs,Linacre College Oxford,PIN037561,-527,
DFID,CSC,21/12/2018,Scholar Allowances,Award Costs,University of Glasgow,PIN037562,782,
DFID,CSC,21/12/2018,Scholar Travel,Award Costs,University of Glasgow,PIN037562,2278.8,
DFID,CSC,21/12/2018,Scholar Engagement,Programme Costs,The Open University,PIN037563,800,
DFID,CSC,21/12/2018,Scholar Engagement,Programme Costs,The Open University,PIN037563,4000,
DFID,CSC,21/12/2018,Commission Meetings,Programme Costs,Quakers Friends House,PIN037564,30,
DFID,CSC,21/12/2018,Commission Meetings,Programme Costs,Quakers Friends House,PIN037564,560,
DFID,CSC,21/12/2018,Scholar Allowances,Award Costs,Scholar,PIN037574,600,
DFID,CSC,21/12/2018,Award Support Costs,Award Costs,Kings College London,PIN037597,5000,
DFID,CSC,21/12/2018,Visa Costs,Award Costs,Kings College London,PIN037598,48.13,
DFID,CSC,21/12/2018,Scholar Travel,Award Costs,Kings College London,PIN037598,503.84,
DFID,CSC,21/12/2018,Scholar Allowances,Award Costs,Kings College London,PIN037599,200,
DFID,CSC,21/12/2018,Scholar Travel,Award Costs,Kings College London,PIN037599,390.52,
DFID,CSC,21/12/2018,Scholar Allowances,Award Costs,Kings College London,PIN037599,200,
DFID,CSC,21/12/2018,Scholar Allowances,Award Costs,Kings College London,PIN037599,225,
DFID,CSC,21/12/2018,Visa Costs,Award Costs,Kings College London,PIN037600,69.73,
DFID,CSC,21/12/2018,Scholar Travel,Award Costs,Kings College London,PIN037600,552.6,
DFID,CSC,21/12/2018,Scholar Allowances,Award Costs,Kings College London,PIN037601,200,
DFID,CSC,21/12/2018,Scholar Travel,Award Costs,Kings College London,PIN037601,474.32,
DFID,CSC,21/12/2018,Scholar Allowances,Award Costs,Kings College London,PIN037601,200,
DFID,CSC,21/12/2018,Scholar Allowances,Award Costs,Kings College London,PIN037601,225,
DFID,CSC,21/12/2018,Visa Costs,Award Costs,Kings College London,PIN037602,64.8,
DFID,CSC,21/12/2018,Scholar Travel,Award Costs,Kings College London,PIN037602,589.82,
DFID,CSC,21/12/2018,Visa Costs,Award Costs,Kings College London,PIN037603,64.51,
DFID,CSC,21/12/2018,Scholar Travel,Award Costs,Kings College London,PIN037603,458.75,
DFID,CSC,21/12/2018,Scholar Travel,Award Costs,The University of Warwick,PIN037605,4301.2,
DFID,CSC,21/12/2018,Scholar Allowances,Award Costs,The University of Warwick,PIN037606,355,
DFID,CSC,21/12/2018,Scholar Travel,Award Costs,The University of Warwick,PIN037606,3134.22,
DFID,CSC,21/12/2018,Scholar Allowances,Award Costs,The University of Warwick,PIN037607,1800,
DFID,CSC,21/12/2018,Scholar Allowances,Award Costs,The University of Warwick,PIN037607,1600,
DFID,CSC,21/12/2018,Visa Costs,Award Costs,The University of Warwick,PIN037607,671.64,
DFID,CSC,21/12/2018,Tuition Fee,Award Costs,Cranfield University,PIN037608,19000,
DFID,CSC,21/12/2018,Tuition Fee,Award Costs,Cranfield University,PIN037609,19000,
DFID,CSC,21/12/2018,Tuition Fee,Award Costs,University of Newcastle upon Tyne,PIN037610,18000,
DFID,CSC,21/12/2018,Tuition Fee,Award Costs,University of Newcastle upon Tyne,PIN037611,5520,
DFID,CSC,21/12/2018,Tuition Fee,Award Costs,London School of Economics,PIN037612,14323.2,
DFID,CSC,21/12/2018,Tuition Fee,Award Costs,London School of Economics,PIN037613,14323.2,
DFID,CSC,21/12/2018,Scholar Allowances,Award Costs,University of Durham,PIN037615,824.12,
DFID,CSC,21/12/2018,Scholar Travel,Award Costs,University of Durham,PIN037615,2790.93,
DFID,CSC,21/12/2018,Scholar Travel,Award Costs,University of Durham,PIN037615,2234.2,
DFID,CSC,21/12/2018,Award Support Costs,Award Costs,University of Durham,PIN037616,3000,
DFID,CSC,21/12/2018,Tuition Fee,Award Costs,University of Durham,PIN037616,320,
DFID,CSC,21/12/2018,Tuition Fee,Award Costs,University of Durham,PIN037616,13200,
DFID,CSC,21/12/2018,Tuition Fee,Award Costs,University of Durham,PIN037616,13920,
DFID,CSC,21/12/2018,Tuition Fee,Award Costs,University of Durham,PIN037616,13200,
DFID,CSC,21/12/2018,Tuition Fee,Award Costs,University of Durham,PIN037616,16720,
DFID,CSC,21/12/2018,Tuition Fee,Award Costs,University of Durham,PIN037616,13920,
DFID,CSC,21/12/2018,Scholar Travel,Award Costs,Keele University,PIN037617,23.3,
DFID,CSC,21/12/2018,Visa Costs,Award Costs,Keele University,PIN037617,238.18,
DFID,CSC,21/12/2018,Scholar Travel,Award Costs,Keele University,PIN037617,1673.1,
DFID,CSC,21/12/2018,Scholar Travel,Award Costs,Keele University,PIN037618,10.5,
DFID,CSC,21/12/2018,Scholar Allowances,Award Costs,Keele University,PIN037618,1350,
DFID,CSC,21/12/2018,Scholar Allowances,Award Costs,Keele University,PIN037618,1200,
DFID,CSC,21/12/2018,Scholar Allowances,Award Costs,Keele University,PIN037618,1100,
DFID,CSC,21/12/2018,Scholar Travel,Award Costs,Keele University,PIN037618,2616.36,
DFID,CSC,21/12/2018,Tuition Fee,Award Costs,The University of Nottingham,PIN037619,29400,Tuition fees for 1 scholar
DFID,CSC,21/12/2018,Tuition Fee,Award Costs,Wolfson College,PIN037620,19044,
DFID,CSC,21/12/2018,Scholar Travel,Award Costs,Nottingham Trent University,PIN037621,59.8,
DFID,CSC,21/12/2018,Scholar Travel,Award Costs,Nottingham Trent University,PIN037621,983.28,
DFID,CSC,21/12/2018,Tuition Fee,Award Costs,University of Durham,PIN037622,85470,Tuition fees for 4 scholars
DFID,CSC,21/12/2018,Tuition Fee,Award Costs,Brunel University,PIN037623,3200,
DFID,CSC,21/12/2018,Award Support Costs,Award Costs,Harper Adams University,PIN037624,5000,
DFID,CSC,21/12/2018,Tuition Fee,Award Costs,Harper Adams University,PIN037624,13960,
DFID,CSC,21/12/2018,Award Support Costs,Award Costs,University College London Fees,PIN037625,5000,
DFID,CSC,21/12/2018,Tuition Fee,Award Costs,University of Sheffield,PIN037627,13800,
DFID,CSC,21/12/2018,Tuition Fee,Award Costs,University of Hull,PIN037628,12800,
DFID,CSC,21/12/2018,Tuition Fee,Award Costs,University of Leicester,PIN037629,15256,
DFID,CSC,21/12/2018,Tuition Fee,Award Costs,Cardiff University,PIN037630,12064,
DFID,CSC,21/12/2018,Award Support Costs,Award Costs,The University of Leeds,PIN037631,9000,
DFID,CSC,21/12/2018,Tuition Fee,Award Costs,The University of Leeds,PIN037632,17200,
DFID,CSC,21/12/2018,Tuition Fee,Award Costs,The University of Leeds,PIN037633,14800,
DFID,CSC,21/12/2018,Tuition Fee,Award Costs,The University of Leeds,PIN037634,15800,
DFID,CSC,21/12/2018,Award Support Costs,Award Costs,University of Reading,PIN037635,1000,
DFID,CSC,21/12/2018,Tuition Fee,Award Costs,University of Reading,PIN037635,12856,
DFID,CSC,21/12/2018,Award Support Costs,Award Costs,University of Reading,PIN037636,2000,
DFID,CSC,21/12/2018,Tuition Fee,Award Costs,University of Bradford,PIN037637,18480,
DFID,CSC,21/12/2018,Tuition Fee,Award Costs,University of Bradford,PIN037638,-3696,
DFID,CSC,21/12/2018,Tuition Fee,Award Costs,The University of Nottingham,PIN037639,19935,
DFID,CSC,21/12/2018,Tuition Fee,Award Costs,The University of Nottingham,PIN037640,16965,
DFID,CSC,21/12/2018,Tuition Fee,Award Costs,The University of Nottingham,PIN037641,16695,
DFID,CSC,21/12/2018,Tuition Fee,Award Costs,Northumbria University,PIN037642,11600,
DFID,CSC,21/12/2018,Scholar Travel,Award Costs,University of Greenwich,PIN037643,896.98,
DFID,CSC,21/12/2018,Tuition Fee,Award Costs,The University of Edinburgh,PIN037644,8990,
DFID,CSC,21/12/2018,Award Support Costs,Award Costs,London North West Healthcare NHS,PIN037645,15000,
DFID,CSC,21/12/2018,Award Support Costs,Award Costs,University of Cambridge,PIN037646,5000,
DFID,CSC,21/12/2018,Scholar Allowances,Award Costs,Sch Oriental & African Studies,PIN037647,735,
DFID,CSC,21/12/2018,Scholar Allowances,Award Costs,Sch Oriental & African Studies,PIN037647,600,
DFID,CSC,21/12/2018,Visa Costs,Award Costs,Sch Oriental & African Studies,PIN037647,159.61,
DFID,CSC,21/12/2018,Scholar Travel,Award Costs,Sch Oriental & African Studies,PIN037647,1581,
DFID,CSC,21/12/2018,Tuition Fee,Award Costs,Sch Oriental & African Studies,PIN037649,59190,Tuition fees for 3 scholars
DFID,CSC,21/12/2018,Tuition Fee,Award Costs,The University of Birmingham,PIN037650,13138.4,
DFID,CSC,21/12/2018,Scholar Travel,Award Costs,University of Hull,PIN037651,39,
DFID,CSC,21/12/2018,Scholar Allowances,Award Costs,University of Hull,PIN037651,675,
DFID,CSC,21/12/2018,Scholar Allowances,Award Costs,University of Hull,PIN037651,600,
DFID,CSC,21/12/2018,Scholar Allowances,Award Costs,University of Hull,PIN037651,600,
DFID,CSC,21/12/2018,Scholar Travel,Award Costs,University of Hull,PIN037651,1637.83,
DFID,CSC,21/12/2018,Visa Costs,Award Costs,Queens University Belfast,PIN037652,299.4,
DFID,CSC,21/12/2018,Scholar Travel,Award Costs,Queens University Belfast,PIN037652,1896.24,
DFID,CSC,21/12/2018,Scholar Allowances,Award Costs,Queens University Belfast,PIN037653,800,
DFID,CSC,21/12/2018,Scholar Allowances,Award Costs,Queens University Belfast,PIN037653,900,
DFID,CSC,21/12/2018,Scholar Allowances,Award Costs,Queens University Belfast,PIN037653,800,
DFID,CSC,21/12/2018,Scholar Travel,Award Costs,Queens University Belfast,PIN037653,2605.67,
DFID,CSC,21/12/2018,Scholar Travel,Award Costs,University of Aberdeen,PIN037654,918,
DFID,CSC,21/12/2018,Scholar Allowances,Award Costs,University of Aberdeen,PIN037654,400,
DFID,CSC,21/12/2018,Scholar Allowances,Award Costs,Scholar,PIN037655,375,
DFID,CSC,21/12/2018,Scholar Stipend,Award Costs,Scholar,PIN037655,427.32,
DFID,CSC,21/12/2018,Scholar Allowances,Award Costs,Institute of Development Studies,PIN037657,250,
DFID,CSC,21/12/2018,Visa Costs,Award Costs,Institute of Development Studies,PIN037657,181.94,
DFID,CSC,21/12/2018,Scholar Allowances,Award Costs,Institute of Development Studies,PIN037657,225,
DFID,CSC,21/12/2018,Scholar Allowances,Award Costs,Institute of Development Studies,PIN037657,200,
DFID,CSC,21/12/2018,Scholar Travel,Award Costs,Institute of Development Studies,PIN037657,24.5,
DFID,CSC,21/12/2018,Scholar Travel,Award Costs,Institute of Development Studies,PIN037657,1049.2,
DFID,CSC,21/12/2018,Scholar Travel,Award Costs,Institute of Development Studies,PIN037657,496.68,
DFE,CSC,21/12/2018,Scholar Stipend,Award Costs,London School of Economics,PIN037658,15960,
DFE,CSC,21/12/2018,Tuition Fee,Award Costs,London School of Economics,PIN037658,17954,
DFE,CSC,21/12/2018,Scholar Allowances,Award Costs,London School of Economics,PIN037660,600,
DFE,CSC,21/12/2018,Scholar Allowances,Award Costs,London School of Economics,PIN037660,170,
DFE,CSC,21/12/2018,Scholar Travel,Award Costs,London School of Economics,PIN037660,876.1,
DFE,CSC,21/12/2018,Scholar Stipend,Award Costs,London School of Economics,PIN037660,15960,
DFE,CSC,21/12/2018,Tuition Fee,Award Costs,London School of Economics,PIN037660,17904,
DFID,CSC,21/12/2018,Visa Costs,Award Costs,Nottingham Trent University,PIN037661,497,
DFID,CSC,21/12/2018,Scholar Travel,Award Costs,Nottingham Trent University,PIN037661,2932.5,
DFE,CSC,21/12/2018,Scholar Allowances,Award Costs,The Cambridge Commonwealth Trust,PIN037662,589.44,
DFID,CSC,21/12/2018,Scholar Engagement,Programme Costs,Cumberland Lodge Enterprises Limited,PIN037663,1846,
DFID,CSC,21/12/2018,Scholar Allowances,Award Costs,Scholar,PIN037664,275,
DFID,CSC,21/12/2018,Scholar Stipend,Award Costs,Scholar,PIN037664,542,
DFID,CSC,21/12/2018,Scholar Allowances,Award Costs,Scholar,PIN037665,7.66,
DFID,CSC,21/12/2018,Scholar Allowances,Award Costs,Scholar,PIN037665,7.66,
DFID,CSC,21/12/2018,Scholar Stipend,Award Costs,Scholar,PIN037665,1608.19,
DFID,CSC,24/12/2018,Scholar Allowances,Award Costs,Scholar,PIN037666,1257.6,
DFID,CSC,24/12/2018,Scholar Allowances,Award Costs,Scholar,PIN037666,844.45,
DFID,CSC,24/12/2018,Scholar Allowances,Award Costs,Scholar,PIN037667,913.34,
DFID,CSC,24/12/2018,Scholar Stipend,Award Costs,Scholar,PIN037668,1171.51,
DFID,CSC,24/12/2018,Scholar Stipend,Award Costs,Scholar,PIN037670,3252,
DFID,CSC,24/12/2018,Scholar Stipend,Award Costs,Scholar,PIN037671,3990,
DFID,CSC,24/12/2018,Scholar Stipend,Award Costs,Scholar,PIN037672,3252,
DFID,CSC,24/12/2018,Scholar Allowances,Award Costs,Scholar,PIN037673,170,
DFID,CSC,24/12/2018,Scholar Stipend,Award Costs,Scholar,PIN037673,3252,
DFID,CSC,24/12/2018,Commission Meetings,Admin Costs,Commission Chair,PIN037674,107,
DFID,CSC,24/12/2018,Scholar Engagement,Admin Costs,Commission Chair,PIN037674,53.85,
DFID,CSC,24/12/2018,Stakeholder Engagement,Admin Costs,Commission Chair,PIN037674,42.45,
DFID,CSC,24/12/2018,Commission Meetings,Admin Costs,Commission Chair,PIN037674,55.45,
DFID,CSC,24/12/2018,Commission Meetings,Admin Costs,Commission Chair,PIN037674,191.65,
DFID,CSC,24/12/2018,Commission Meetings,Admin Costs,Commission Chair,PIN037674,730.2,
DFID,CSC,24/12/2018,Commission Meetings,Admin Costs,Commission Chair,PIN037674,134.75,
DFID,CSC,24/12/2018,Scholar Stipend,Award Costs,Scholar,PIN037677,1582.6,
DFID,CSC,27/12/2018,Scholar Allowances,Award Costs,Scholar,PIN037681,170,
DFID,CSC,27/12/2018,Scholar Stipend,Award Costs,Scholar,PIN037681,3252,
DFID,CSC,27/12/2018,Scholar Allowances,Award Costs,Scholar,PIN037682,170,
DFID,CSC,27/12/2018,Scholar Stipend,Award Costs,Scholar,PIN037682,3252,
DFID,CSC,05/12/2018,Bank Charges,Award Costs,MasterCard Prepaid Management Services Ltd,PIN037694,17.35,
DFID,CSC,05/12/2018,Scholar Allowances,Award Costs,Scholar,PIN037694,421,
DFID,CSC,05/12/2018,Scholar Stipend,Award Costs,Scholar,PIN037694,1119.61,
DFID,CSC,05/12/2018,Visa Costs,Award Costs,Scholar,PIN037694,97,
DFID,CSC,05/12/2018,Visa Costs,Award Costs,Scholar,PIN037694,97,
DFID,CSC,11/12/2018,Bank Charges,Award Costs,MasterCard Prepaid Management Services Ltd,PIN037695,8.23,
DFID,CSC,11/12/2018,Scholar Travel,Award Costs,Scholar,PIN037695,86,
DFID,CSC,11/12/2018,Scholar Travel,Award Costs,Scholar,PIN037695,86,
DFID,CSC,11/12/2018,Scholar Travel,Award Costs,Scholar,PIN037695,86,
DFID,CSC,11/12/2018,Scholar Travel,Award Costs,Scholar,PIN037695,86,
DFID,CSC,11/12/2018,Scholar Travel,Award Costs,Scholar,PIN037695,86,
DFID,CSC,11/12/2018,Scholar Travel,Award Costs,Scholar,PIN037695,70,
DFID,CSC,11/12/2018,Scholar Travel,Award Costs,Scholar,PIN037695,52,
DFID,CSC,11/12/2018,Scholar Travel,Award Costs,Scholar,PIN037695,109,
DFID,CSC,11/12/2018,Scholar Travel,Award Costs,Scholar,PIN037695,36,
DFID,CSC,11/12/2018,Scholar Travel,Award Costs,Scholar,PIN037695,17,
DFID,CSC,11/12/2018,Scholar Travel,Award Costs,Scholar,PIN037695,17,
DFID,CSC,11/12/2018,Scholar Travel,Award Costs,Scholar,PIN037695,17,
DFID,CSC,11/12/2018,Scholar Travel,Award Costs,Scholar,PIN037695,75,
DFID,CSC,17/12/2018,Bank Charges,Award Costs,MasterCard Prepaid Management Services Ltd,PIN037696,7.83,
DFID,CSC,17/12/2018,Scholar Travel,Award Costs,Scholar,PIN037696,106,
DFID,CSC,17/12/2018,Scholar Travel,Award Costs,Scholar,PIN037696,109,
DFID,CSC,17/12/2018,Scholar Travel,Award Costs,Scholar,PIN037696,17,
DFID,CSC,17/12/2018,Scholar Travel,Award Costs,Scholar,PIN037696,17,
DFID,CSC,17/12/2018,Scholar Travel,Award Costs,Scholar,PIN037696,75,
DFID,CSC,17/12/2018,Scholar Allowances,Award Costs,Scholar,PIN037696,150,
DFID,CSC,17/12/2018,Visa Costs,Award Costs,Scholar,PIN037696,309,
DFID,CSC,21/12/2018,Bank Charges,Award Costs,MasterCard Prepaid Management Services Ltd,PIN037697,180.52,
DFID,CSC,21/12/2018,Scholar Allowances,Award Costs,Scholar,PIN037697,170,
DFID,CSC,21/12/2018,Scholar Stipend,Award Costs,Scholar,PIN037697,3252,
DFID,CSC,21/12/2018,Scholar Stipend,Award Costs,Scholar,PIN037697,3252,
DFID,CSC,21/12/2018,Scholar Stipend,Award Costs,Scholar,PIN037697,3990,
DFID,CSC,21/12/2018,Scholar Stipend,Award Costs,Scholar,PIN037697,3252,
DFID,CSC,21/12/2018,Scholar Allowances,Award Costs,Scholar,PIN037697,421,
DFID,CSC,21/12/2018,Scholar Stipend,Award Costs,Scholar,PIN037697,3714.93,
DFID,CSC,24/12/2018,Bank Charges,Award Costs,MasterCard Prepaid Management Services Ltd,PIN037698,41.74,
DFID,CSC,24/12/2018,Scholar Allowances,Award Costs,Scholar,PIN037698,421,
DFID,CSC,24/12/2018,Scholar Stipend,Award Costs,Scholar,PIN037698,3752.5,
DFID,CSC,19/12/2018,Scholar Stipend,Award Costs,Scholar,PRF000105,-2559.75,
DFID,CSC,21/12/2018,Scholar Allowances,Award Costs,Scholar,PRF000110,-699,
DFID,CSC,27/12/2018,Scholar Stipend,Award Costs,Scholar,PRF000111,-600,
